Workbook

Sheet User Information
B2: Welcome to the Wetland Restoration Environmental Benefit Index Calculator!
B4: Prepared by: Credit Valley Conservation
B6: Funded by: Greenbelt
B8: What does it do?
B9: This Calculator assists with measuring the public benefits received when wetlands are restored on private lands in the Greenbelt region of Ontario. The Calculator is best used to compare the benefits derived from multiple restoration projects. The Calculator should be used in conjunction with the Environmental Benefit Index (EBI) User Manual available at:
B10: www.creditvalleyca.ca/watershed-science/our-watershed/ecological-goods-services/.
B12: Who is it for?
B13: The EBI Calculator is designed for use by conservation practitioners (preferably those with experience conducting wetland evaluations in Ontario). The Ontario Wetland Evaluation System provides the foundation upon which the EBI has been developed.
B15: How to use it?
B16: The EBI is comprised of three components; Biological, Hydrological and Social. Each component has multiple sub-components and in many cases, each sub-component has multiple attributes (i.e. wetland type, groundwater recharge, etc.). Each attribute is calculated on a separate worksheet within the Calculator. To calculate the EBI score for a wetland restoration project, the user must start at worksheet 1.1.1 Wetland Type and complete the steps listed for both the existing wetland condition (if applicable) and the restored wetland condition before proceeding to the next worksheet (i.e. 1.1.2 Wetland Area). Once all attributes have been scored, the existing and restored conditions scores are automatically tabulated in the EBI Scores worksheet. Also within this worksheet, the change in condition score is calculated and this score as well as the existing condition score may be adjusted by a weighting factor before the total EBI score is computed. In addition, the Climate Change and Pollution Reduction scores are computed in this worksheet.
B18: How to edit it?
B19: With a basic understanding of Microsoft Excel, users may manipulate the EBI Calculator to suit their local needs. Changes that a user may want to make include the following:
B20: - Adjust the maximum points for each attribute
B21: - Adjust the weighting factors for the existing condition and change in condition EBI scores
B22: - Edit, delete or add attributes
B23: Users are advised to take extreme caution when modifying the EBI Calculator. Many formulas support the computation of the EBI score and making structural edits to the Calculator may result in broken formulas. Users should be particularly careful when making edits to the Admin. worksheet; this worksheet provides the route information for each drop-down menu in the Calculator.
B25: Where to get assistance?
B26: The User Manual explains how each attribute is calculated and how to use the EBI Calculator. If further information is required on specific attributes, the Ontario Wetland Evaluation System, Southern Manual, 3rd Edition, Version 3.2 may provide the necessary information.

Sheet 1.1.1 Type
C3: 1.1.1 Wetland Type
C5: Existing Condition
C7: Step 1 | D7: Is there an existing wetland present at the project site? | E7: 1 | H7: =IF(E7=1, "Continue to Step 2", "Zero Points Scored, Continue to Restored Conditions Evaluation") -> Continue to Step 2
C8: Step 2 | D8: Calculate the Fractional Area (FA) of the existing wetland types.
D9: Note:
D10: FA is simply the fraction of the total wetland that is comprised of each of the wetland types. For example, if a wetland is 100% swamp the FA would be 1. If a wetland was 60% swamp and 40% marsh the FA would be .6 for swamp and .4 for marsh. It is important that the sum of the FA's total 1.
D11: Fractional Area - Marsh | E11: 0 | G11: =E11*5 -> 0
D12: Fractional Area - Swamp | E12: 0 | G12: =E12*8 -> 0
D13: Fractional Area - Bog and/or Fen | E13: 0 | G13: =E13*10 -> 0
C15: Existing Condition Score | E15: =ROUND(IF(E7=2, 0, SUM(G11:G13)),0) -> 0
C17: Restored Condition
C19: Step 1 | D19: Calculate the Fractional Area (FA) of the proposed wetland types.
D20: Fractional Area - Marsh | E20: 0 | G20: =E20*5 -> 0
D21: Fractional Area - Swamp | E21: 0 | G21: =E21*8 -> 0
D22: Fractional Area - Bog and/or Fen | E22: 0 | G22: =E22*10 -> 0
C24: Restored Condition Score | E24: =ROUND(SUM(G20:G22),0) -> 0

Sheet 1.1.2 Area
C3: 1.1.2 Effective Project Area
C5: Restored Condition
C7: Step 1 | D7: Select the one option below that best represents the proposed effective project area.
D8: Note:
D9: The effective project area is the wetland area measured from the high water mark.
D10: Less than 0.5 hectares | F10: 0 | G10: =IF($F$10=1,2,0) -> 0
D11: Greater than or equal to 0.5 hectares but less than 2 hectares | G11: =IF($F$10=2,5,0) -> 0
D12: Greater than or equal to 2 hectares but less than 5 hectares | G12: =IF($F$10=3,10,0) -> 0
D13: Greater than or equal to 5 hectares but less than 10 hectares | G13: =IF($F$10=4,15,0) -> 0
D14: Greater than or equal to 10 hectares | G14: =IF($F$10=5,20,0) -> 0
C16: Restored Condition Score | E16: =SUM(G10,G11,G12,G13,G14) -> 0

Sheet 1.1.3 Proximity
C3: 1.1.3 Proximity to Other Wetlands
C5: Existing Condition
C7: Step 1 | D7: Select the one option below that best represents the proximity of the existing project site to other wetlands.
D8: No wetland within 120 metres of the restoration project | F8: 0 | G8: =IF($F$8=1, 4, 0) -> 0
D9: A wetland exists within 30-120 metres of the restoration project | G9: =IF($F$8=2, 6, 0) -> 0
D10: A wetland exists within 10-29 metres of the restoration project | G10: =IF($F$8=3, 8, 0) -> 0
D11: A wetland exists less than 10 metres from the restoration project | G11: =IF($F$8=4, 10, 0) -> 0
C13: Existing Condition Score | E13: =SUM(G8,G9,G10,G11) -> 0
C15: Restored Condition
C17: Step 1 | D17: Select the one option below that best represents the proximity of the proposed wetland to other wetlands.
D18: No wetland within 120 metres of the restoration project | F18: 0 | G18: =IF($F$18=1, 4, 0) -> 0
D19: A wetland exists within 30-120 metres of the restoration project | G19: =IF($F$18=2, 6, 0) -> 0
D20: A wetland exists within 10-29 metres of the restoration project | G20: =IF($F$18=3, 8, 0) -> 0
D21: A wetland exists less than 10 metres from the restoration project | G21: =IF($F$18=4, 10, 0) -> 0
C23: Restored Condition Score | E23: =SUM(G18,G19,G20,G21) -> 0

Sheet 1.1.4 Open Water
C3: 1.1.4 Permanent and Seasonal Open Water Types
C5: Existing Condition
C7: Step 1 | D7: Select the one option below that best represents the permanent and seasonal open water types at the existing project site.
D8: Notes:
D9: Include the presence of streams and rivers within the wetland limits.
D10: Permanent open water is year round standing water with or without emergent vegetation.
D11: Seasonal open water includes intermittent watercourses and vernal pools that contain ponded water for greater than 2 months of the year.
D12: When assessing open water do not include areas with vegetation so dense that duck could not swim through it.
D13: No permanent or seasonal open water | F13: 0 | G13: =IF($F$13=1, 0, 0) -> 0
D14: More than 95% of the area is permanent open water | G14: =IF($F$13=2, 2, 0) -> 0
D15: Less than 5% of the area is permanent open water and/or seasonal open water | G15: =IF($F$13=3, 4, 0) -> 0
D16: 5-25% of the area is permanent open water and it is occuring in the central portion of the wetland; vegetation is peripheral | G16: =IF($F$13=4, 4, 0) -> 0
D17: 76-95% of the area is permanent open water and it is occuring in the central portion of the wetland; vegetation is peripheral | G17: =IF($F$13=5, 4, 0) -> 0
D18: 5-25% of the area is permanent open water and it is occuring in various sized ponds; vegetation is in dense patches or diffuse open stands | G18: =IF($F$13=6, 6, 0) -> 0
D19: 76-95% of the area is permanent open water, vegetation is in dense patches or diffuse open stands | G19: =IF($F$13=7, 6, 0) -> 0
D20: 26-75% of the area is permanent open water and it is occuring in the central portion of the wetland | G20: =IF($F$13=8, 8, 0) -> 0
D21: 26-75% of the area is permanent open water and it is occuring in a pattern of small ponds; embayments are common and/or 6-100% of the area is seasonal open water | G21: =IF($F$13=9, 10, 0) -> 0
C23: Existing Condition Score | E23: =SUM(G13:G21) -> 0
C25: Restored Condition
C27: Step 1 | D27: Select the one option below that best represents the permanent and seasonal open water types at the proposed wetland.
D28: No permanent or seasonal open water | F28: 0 | G28: =IF($F$28=1, 0, 0) -> 0
D29: More than 95% of the area is permanent open water | G29: =IF($F$28=2, 2, 0) -> 0
D30: Less than 5% of the area is permanent open water and/or seasonal open water | G30: =IF($F$28=3, 4, 0) -> 0
D31: 5-25% of the area is permanent open water and it is occuring in the central portion of the wetland; vegetation is peripheral | G31: =IF($F$28=4, 4, 0) -> 0
D32: 76-95% of the area is permanent open water and it is occuring in the central portion of the wetland; vegetation is peripheral | G32: =IF($F$28=5, 4, 0) -> 0
D33: 5-25% of the area is permanent open water and it is occuring in various sized ponds; vegetation is in dense patches or diffuse open stands | G33: =IF($F$28=6, 6, 0) -> 0
D34: 76-95% of the area is permanent open water, vegetation is in dense patches or diffuse open stands | G34: =IF($F$28=7, 6, 0) -> 0
D35: 26-75% of the area is permanent open water and it is occuring in the central portion of the wetland | G35: =IF($F$28=8, 8, 0) -> 0
D36: 26-75% of the area is permanent open water and it is occuring in a pattern of small ponds; embayments are common and/or 6-100% of the area is seasonal open water | G36: =IF($F$28=9, 10, 0) -> 0
C38: Restored Condition Score | E38: =SUM(G28:G36) -> 0

Sheet 1.1.5 Interspersion
C3: 1.1.5 Interspersion
C5: Existing Condition
C7: Step 1 | D7: Select the one option below that best represents the number of interspersion intersections of the existing project site.
D8: Less than 20 intersections | F8: 0 | G8: =IF($F$8=1, 2, 0) -> 0
D9: 21-30 intersections | G9: =IF($F$8=2, 4, 0) -> 0
D10: 31-40 intersections | G10: =IF($F$8=3, 6, 0) -> 0
D11: 41-50 intersections | G11: =IF($F$8=4, 8, 0) -> 0
D12: Greater than 50 intersections | G12: =IF($F$8=5, 10, 0) -> 0
C14: Existing Condition Score | E14: =SUM(G8:G12) -> 0
C16: Restored Condition
C18: Step 1 | D18: Select the one option below that best represents the number of interspersion intersections at the propsed wetland site.
D19: Less than 20 intersections | F19: 0 | G19: =IF($F$19=1, 2, 0) -> 0
D20: 21-30 intersections | G20: =IF($F$19=2, 4, 0) -> 0
D21: 31-40 intersections | G21: =IF($F$19=3, 6, 0) -> 0
D22: 41-50 intersections | G22: =IF($F$19=4, 8, 0) -> 0
D23: Greater than 50 intersections | G23: =IF($F$19=5, 10, 0) -> 0
C25: Restored Condition Score | E25: =SUM(G19:G23) -> 0

Sheet 1.1.6 Vegetation Communities
C3: 1.1.6 Vegetation Communities on the Site
C5: Existing Condition
C7: Step 1 | D7: Input the number of communities with 1-3 forms | E7: 0 | F7: =IF(E7=1,1.5,IF(E7=2,2.5,IF(E7=3,3.5,IF(E7=4,4.5,IF(E7=5,5,IF(E7=6,5.5,IF(E7=7,6,IF(E7=8,6.5,IF(E7=9,7,IF(E7=10,7.5,IF(E7=11,8,IF(E7=12,8.5,IF(E7=13,9,IF(E7=14,9.5,IF(E7=15,10,IF(E7=16,10.5,IF(E7=17,11,IF(E7=18,11.5,IF(E7=19,12,IF(E7=20,12.5,IF(E7=21,13,IF(E7=22,13.5,IF(E7=23,14,IF(E7=24,14.5,IF(E7=25,15,IF(E7=26,15.5,IF(E7=27,16,IF(E7=28,16.5,IF(E7=29,17,IF(E7=30,17.5,IF(E7=31,18,IF(E7=32,18.5,IF(E7=33,19,IF(E7=34,19.5,IF(E7=35,20,IF(E7=36,20.5,IF(E7=37,21,IF(E7=38,21.5,IF(E7=39,22,IF(E7=40,22.5,IF(E7=41,23,IF(E7=42,23.5,IF(E7=43,24,IF(E7=44,24.5,IF(E7=45,25,IF(E7=46,25.5,IF(E7=47,26,IF(E7=48,26.5,IF(E7=49,27,IF(E7=50,27.5,IF(E7=51,28,IF(E7=52,28.5,IF(E7=53,29,IF(E7=54,29.5,IF(E7=55,30,IF(E7=56,30.5,IF(E7=57,31,IF(E7=58,31.5,IF(E7=59,32,IF(E7=60,32.5)))))))))))))))))))))))))))))))))))))))))))))))))))))))))))) -> FALSE
F8: =IF(E7=61,33,IF(E7=62,33.5,IF(E7=63, 34,IF(E7=64,34.5,IF(E7=65,35,IF(E7=66,35.5,IF(E7=67,36,IF(E7=68,36.5,IF(E7=69,37,IF(E7=70,37.5,IF(E7=71,38,IF(E7=72,38.5,IF(E7=73,39,IF(E7=74,39.5,IF(E7=75,40,IF(E7=76,40.5,IF(E7=77,41,IF(E7=78,41.5,IF(E7=79,42,IF(E7=80,42.5,IF(E7=81,43,IF(E7=82,43.5,IF(E7=83,44,IF(E7=84,44.5,IF(E7=85,45))))))))))))))))))))))))) -> FALSE
C9: Step 2 | D9: Input the number of commuities with 4-5 forms | E9: 0 | F9: =IF(E9=1,2,IF(E9=2,3.5,IF(E9=3,5,IF(E9=4,6.5,IF(E9=5,7.5,IF(E9=6,8.5,IF(E9=7,9.5,IF(E9=8,10.55,IF(E9=9,11.5,IF(E9=10,12.5,IF(E9=11,13,IF(E9=12,13.5,IF(E9=13,14,IF(E9=14,14.5,IF(E9=15,15,IF(E9=16,15.5,IF(E9=17,16,IF(E9=18,16.5,IF(E9=19,17,IF(E9=20,17.5,IF(E9=21,18,IF(E9=22,18.5,IF(E9=23,19,IF(E9=24,19.5,IF(E9=25,20,IF(E9=26,20.5,IF(E9=27,21,IF(E9=28,21.5,IF(E9=29,22,IF(E9=30,22.5,IF(E9=31,23,IF(E9=32,23.5,IF(E9=33,24,IF(E9=34,24.5,IF(E9=35,25,IF(E9=36,25.5,IF(E9=37,26,IF(E9=38,26.5,IF(E9=39,27,IF(E9=40,27.5,IF(E9=41,28,IF(E9=42,28.5,IF(E9=43,29,IF(E9=44,29.5,IF(E9=45,30,IF(E9=46,30.5,IF(E9=47,31,IF(E9=48,31.5,IF(E9=49,32,IF(E9=50,32.5,IF(E9=51,33,IF(E9=52,33.5,IF(E9=53,34,IF(E9=54,34.5,IF(E9=55,35,IF(E9=56,35.5,IF(E9=57,36,IF(E9=58,36.5,IF(E9=59,37,IF(E9=60,37.5)))))))))))))))))))))))))))))))))))))))))))))))))))))))))))) -> FALSE
F10: =IF(E9=61,38,IF(E9=62,38.5,IF(E9=63, 39,IF(E9=64,39.5,IF(E9=65,40,IF(E9=66,40.5,IF(E9=67,41,IF(E9=68,41.5,IF(E9=69,42,IF(E9=70,42.5,IF(E9=71,43,IF(E9=72,43.5,IF(E9=73,44,IF(E9=74,44.5,IF(E9=75,45))))))))))))))) -> FALSE
C12: Existing Condition Score | E12: =IF(SUM(F7:F10)>45,45,SUM(F7:F10)) -> 0
C14: Restored Condition
C16: Step 1 | D16: Input the number of communities with 1-3 forms | E16: 0 | F16: =IF(E16=1,1.5,IF(E16=2,2.5,IF(E16=3,3.5,IF(E16=4,4.5,IF(E16=5,5,IF(E16=6,5.5,IF(E16=7,6,IF(E16=8,6.5,IF(E16=9,7,IF(E16=10,7.5,IF(E16=11,8,IF(E16=12,8.5,IF(E16=13,9,IF(E16=14,9.5,IF(E16=15,10,IF(E16=16,10.5,IF(E16=17,11,IF(E16=18,11.5,IF(E16=19,12,IF(E16=20,12.5,IF(E16=21,13,IF(E16=22,13.5,IF(E16=23,14,IF(E16=24,14.5,IF(E16=25,15,IF(E16=26,15.5,IF(E16=27,16,IF(E16=28,16.5,IF(E16=29,17,IF(E16=30,17.5,IF(E16=31,18,IF(E16=32,18.5,IF(E16=33,19,IF(E16=34,19.5,IF(E16=35,20,IF(E16=36,20.5,IF(E16=37,21,IF(E16=38,21.5,IF(E16=39,22,IF(E16=40,22.5,IF(E16=41,23,IF(E16=42,23.5,IF(E16=43,24,IF(E16=44,24.5,IF(E16=45,25,IF(E16=46,25.5,IF(E16=47,26,IF(E16=48,26.5,IF(E16=49,27,IF(E16=50,27.5,IF(E16=51,28,IF(E16=52,28.5,IF(E16=53,29,IF(E16=54,29.5,IF(E16=55,30,IF(E16=56,30.5,IF(E16=57,31,IF(E16=58,31.5,IF(E16=59,32,IF(E16=60,32.5)))))))))))))))))))))))))))))))))))))))))))))))))))))))))))) -> FALSE
F17: =IF(E16=61,33,IF(E16=62,33.5,IF(E16=63, 34,IF(E16=64,34.5,IF(E16=65,35,IF(E16=66,35.5,IF(E16=67,36,IF(E16=68,36.5,IF(E16=69,37,IF(E16=70,37.5,IF(E16=71,38,IF(E16=72,38.5,IF(E16=73,39,IF(E16=74,39.5,IF(E16=75,40,IF(E16=76,40.5,IF(E16=77,41,IF(E16=78,41.5,IF(E16=79,42,IF(E16=80,42.5,IF(E16=81,43,IF(E16=82,43.5,IF(E16=83,44,IF(E16=84,44.5,IF(E16=85,45))))))))))))))))))))))))) -> FALSE
C18: Step 2 | D18: Input the number of commuities with 4-5 forms | E18: 0 | F18: =IF(E18=1,2,IF(E18=2,3.5,IF(E18=3,5,IF(E18=4,6.5,IF(E18=5,7.5,IF(E18=6,8.5,IF(E18=7,9.5,IF(E18=8,10.55,IF(E18=9,11.5,IF(E18=10,12.5,IF(E18=11,13,IF(E18=12,13.5,IF(E18=13,14,IF(E18=14,14.5,IF(E18=15,15,IF(E18=16,15.5,IF(E18=17,16,IF(E18=18,16.5,IF(E18=19,17,IF(E18=20,17.5,IF(E18=21,18,IF(E18=22,18.5,IF(E18=23,19,IF(E18=24,19.5,IF(E18=25,20,IF(E18=26,20.5,IF(E18=27,21,IF(E18=28,21.5,IF(E18=29,22,IF(E18=30,22.5,IF(E18=31,23,IF(E18=32,23.5,IF(E18=33,24,IF(E18=34,24.5,IF(E18=35,25,IF(E18=36,25.5,IF(E18=37,26,IF(E18=38,26.5,IF(E18=39,27,IF(E18=40,27.5,IF(E18=41,28,IF(E18=42,28.5,IF(E18=43,29,IF(E18=44,29.5,IF(E18=45,30,IF(E18=46,30.5,IF(E18=47,31,IF(E18=48,31.5,IF(E18=49,32,IF(E18=50,32.5,IF(E18=51,33,IF(E18=52,33.5,IF(E18=53,34,IF(E18=54,34.5,IF(E18=55,35,IF(E18=56,35.5,IF(E18=57,36,IF(E18=58,36.5,IF(E18=59,37,IF(E18=60,37.5)))))))))))))))))))))))))))))))))))))))))))))))))))))))))))) -> FALSE
F19: =IF(E18=61,38,IF(E18=62,38.5,IF(E18=63, 39,IF(E18=64,39.5,IF(E18=65,40,IF(E18=66,40.5,IF(E18=67,41,IF(E18=68,41.5,IF(E18=69,42,IF(E18=70,42.5,IF(E18=71,43,IF(E18=72,43.5,IF(E18=73,44,IF(E18=74,44.5,IF(E18=75,45))))))))))))))) -> FALSE
F20: 1
C21: Restored Condition Score | E21: =IF(SUM(F16:F19)>45,45,SUM(F16:F19)) -> 0

Sheet 1.1.7 Diversity
C3: 1.1.7 Diversity of Surrounding Habitat
C5: Existing Condition
C7: Step 1 | D7: Select all habitats that exist within 120 metres of the existing project site/wetland boundary
D8: Note:
D9: Mixed forest defined as either 25% coniferous trees distributed singularly or in clumps in deciduous forest, or 25% deciduous trees distributed singularly or in clumps of coniferous forest.
D10: non-intensive agriculture (hay/pasture) | F10: FALSE | G10: =IF(F10,1,0) -> 0
D11: abandoned agricultural land | F11: FALSE | G11: =IF(F11,1,0) -> 0
D12: deciduous forest | F12: FALSE | G12: 0
D13: coniferous forest | F13: FALSE | G13: 0
D14: mixed forest | F14: FALSE | G14: 0
D15: abandoned pits and quarries | F15: FALSE | G15: 0
D16: open lake or deep river | F16: FALSE | G16: 0
D17: terrain appreciably undulating, hilly or with ravines | F17: FALSE | G17: 0
D18: creek flood plain | F18: FALSE | G18: 0
D19: grassland | F19: FALSE | G19: 0
C21: Existing Condition Score | E21: =SUM(G10:G19) -> 0
C23: Restored Condition
C25: Step 1 | D25: Select all habitats that exist within 120 metres of the restored wetland boundary
D26: non-intensive agriculture (hay/pasture) | F26: FALSE | G26: =IF(F26,1,0) -> 0
D27: abandoned agricultural land | F27: FALSE | G27: =IF(F27,1,0) -> 0
D28: deciduous forest | F28: FALSE | G28: 0
D29: coniferous forest | F29: FALSE | G29: 0
D30: mixed forest | F30: FALSE | G30: 0
D31: abandoned pits and quarries | F31: FALSE | G31: 0
D32: open lake or deep river | F32: FALSE | G32: 0
D33: terrain appreciably undulating, hilly or with ravines | F33: FALSE | G33: 0
D34: creek flood plain | F34: FALSE | G34: 0
D35: grassland | F35: FALSE | G35: 0
C37: Existing Condition Score | E37: =SUM(G26:G35) -> 0

Sheet 1.1.8 Carbon Sequestration
C3: 1.1.8 Carbon Sequestration
C5: Existing Condition
C7: Step 1 | D7: Select the one option below that best represents the vegetation of the existing project area.
D8: aquatic dominated vegetation | F8: 0
D9: grass/forb dominated vegetation
D10: tree dominated vegetation
C12: Existing Condition Score | E12: =IF(F8=1,5,IF(F8=2,10,IF(F8=3,15,0))) -> 0
C14: Restored Condition
C16: Step 1 | D16: Are there plantings proposed as part of this project? | E16: 1 | J16: =IF(E16=1,"Continue onto Step #2",IF(E16=2,"Zero Points Added to Existing Condition Score, Proceed to 1.2.1")) -> Continue onto Step #2
C18: Step 2 | D18: Select all vegetation planting types planned as part of the restoration project
D19: aquatic vegetation | F19: FALSE | G19: =IF(F19,1,0) -> 0 | H19: =IF(G19=1,5,0) -> 0
D20: grass/forb vegetation | F20: FALSE | G20: =IF(F20,1,0) -> 0 | H20: =IF(G20=1,8,0) -> 0
D21: tree vegetation | F21: FALSE | G21: =IF(F21,1,0) -> 0 | H21: =IF(G21=1,10,0) -> 0
H22: =SUM(H19:H21) -> 0
C23: Restored Condition Score | E23: =IF(H23>25,25,H23) -> 0 | H23: =IF(E16=2,E12,IF(E16=1,SUM(E12,H22))) -> 0

Sheet 1.2.1 Reproductive Habitat
C3: 1.2.1 Reproductive Habitat for Endangered and/or Threatened Species
C5: Existing Condition
C7: Step 1 | D7: Does the project site already contain a wetland? | E7: 1 | J7: =IF(E7=1,"Continue onto Step #2",IF(E7=2,"Continue to Restored Condition")) -> Continue onto Step #2
C9: Step 2 | D9: Select the one option below that best represents the existing condition.
D10: Notes:
D11: Local records to be used to validate presence/absence of species at risk.
D12: Record must be no more than 20 years old to be considered valid.
D13: Species at risk recovery strategies are to be used to validate likelihood that the proposed project will have a repoductive benefit to species at risk.
D14: no record of endangered or threatened species reproducing in the wetland | F14: 0
D15: confirmed reproductive use of the wetland by one endangered or threatened species
D16: confirmed reproductive use of the wetland by more than one endangered or threatened species
C18: Existing Condition Score | E18: =IF(E7=2,0,IF(F14=1,0,IF(F14=2,6,IF(F14=3,12,0)))) -> 0
C20: Restored Condition
C22: Step 1 | D22: Select the one option below that best represents the intended restored condition.
D23: no predicted reproductive benefit to endangered or threatened species | F23: 0 | G23: =IF(F23=1,0) -> FALSE
D24: a predicted reproductive benefit to one endangered or threatened species | G24: =IF(F23=2,6) -> FALSE
D25: a predicted reproductive benefit to more than one endangered or threatened species | G25: =IF(F23=3,12) -> FALSE
G26: =SUM(G23:G25) -> 0
C27: Restored Condition Score | E27: =SUM(E18,G26) -> 0

Sheet 1.2.2 Migration...Habitat
C3: 1.2.2 Traditional Migration, Feeding or Hibernation Habitat for Endangered and/or Threatened Species
C5: Existing Condition
C7: Step 1 | D7: Does the project site already contain a wetland? | E7: 1 | J7: =IF(E7=1,"Continue onto Step #2",IF(E7=2,"Continue to Restored Condition")) -> Continue onto Step #2
C9: Step 2 | D9: Select the one option below that best represents the existing condition.
D10: Notes:
D11: Local records to be used to validate presence/absence of species at risk.
D12: Record must be no more than 20 years old to be considered valid.
D13: Species at risk recovery strategies are to be used to validate likelihood that the proposed project will have a migration, feeding and/or hibernation benefit to species at risk.
D14: no record of endangered or threatened species utilizing the existing wetland for migration, feeding or hibernation | F14: 0
D15: confirmed migration, feeding or hibernation use of the wetland by one endangered or threatened species
D16: confirmed migration, feeding or hibernation use of the wetland by more than one endangered or threatened species
C18: Existing Condition Score | E18: =IF(E7=2,0,IF(F14=1,0,IF(F14=2,6,IF(F14=3,12,0)))) -> 0
C20: Restored Condition
C22: Step 1 | D22: Select the one option below that best represents the intended restored condition.
D23: no predicted migration, feeding or hibernation benefit to endangered or threatened species | F23: 0 | G23: =IF(F23=1,0) -> FALSE
D24: a predicted migration, feeding or hibernation benefit to one endangered or threatened species | G24: =IF(F23=2,6) -> FALSE
D25: a predicted migration, feeding or hibernation benefit to more than one endangered or threatened species | G25: =IF(F23=3,12) -> FALSE
G26: =SUM(G23:G25) -> 0
C27: Restored Condition Score | E27: =SUM(E18,G26) -> 0

Sheet 1.2.3 Significant Species
C3: 1.2.3 Presence of Locally, Regionally, and/or Provincially Significant Plant and Animal Species that Directly Benefit from the Existence of Wetlands
C5: Existing Condition
C7: Step 1 | D7: Select the one option below that best represents the existing condition.
D8: Notes:
D9: Local records to be used to validate presence/absence of significant species
D10: Record must be no more than 20 years old to be considered valid.
D11: Where available, species at risk recovery strategies or other documents are to be used to validate the likelihood that the proposed project will have a benefit to any locally, regionally, and/or provincially significant species.
D12: no record of locally, regionally, and/or provincially significant plant or animal species within 120 metres of the effective project area | F12: 0
D13: confirmed record of one locally, regionally, and/or provincially significant plant or animal species within 120 metres of the effective project area
D14: confirmed record of more than one locally, regionally, and/or provincially significant plant and/or animal species within 120 metres of the effective project area
C16: Existing Condition Score | E16: =IF(F12=1,0,IF(F12=2,10,IF(F12=3,20,0))) -> 0
C18: Restored Condition
C20: Step 1 | D20: Select the one option below that best represents the intended restored condition.
D21: the project does not intend to benefit a locally, regionally, and/or provincially significant plant or animal species within 120 metres of the effective project area | F21: 0 | G21: =IF(F21=1,0) -> FALSE
D22: the project intends to benefit one locally, regionally, and/or provincially significant plant or animal species within 120 metres of the effective project area | G22: =IF(F21=2,5) -> FALSE
D23: the project intends to benefit more than one locally, regionally, and/or provincially significant plant and/or animal species within 120 metres of the effective project area | G23: =IF(F21=3,10) -> FALSE
G24: =SUM(G21:G23) -> 0
C25: Restored Condition Score | E25: =SUM(E16,G24) -> 0

Sheet 1.2.4 Colonial Waterbirds
C3: 1.2.4 Nesting and Feeding Habitat for Colonial Waterbirds
C5: Existing Condition
C7: Step 1 | D7: Select the one option below that best represents the existing condition.
D8: Notes:
D9: Only the following wetland dependent colonial waterbirds are eligible to be scored: red necked grebe, black-crowned night heron, great egret, black tern, caspian tern, common tern and great blue heron (scored for nesting only)
D10: Local records to be used to validate feeding/nesting of colonial waterbirds
D11: Record must be no more than 20 years old to be considered valid.
D12: Where available, documents are to be used to validate the likelihood that the proposed project will have a benefit to colonial waterbirds.
D13: no record of colonial waterbirds nesting or feeding in the existing wetland or it is not possible (i.e. no open water) | F13: 0
D14: colonial waterbirds utilize the existing wetland as an active feeding area (except great blue heron)
D15: colonial waterbirds have been known to nest in the existing wetland within the last five years
D16: colonial waterbirds are currently nesting in the existing wetland
C18: Existing Condition Score | E18: =IF(F13=1,0,IF(F13=2,4,IF(F13=3,7,IF(F13=4,10,0)))) -> 0
C20: Restored Condition
C22: Step 1 | D22: Select the one option below that best represents the intended restored condition.
D23: no improved benefit to nesting and feeding habitat for colonial waterbirds as a result of the wetland restoration project | F23: 0 | G23: =IF(F23=1,0) -> FALSE
D24: the project intends to improve nesting and/or feeding habitat for colonial waterbirds | G24: =IF(F23=2,5) -> FALSE
G25: =SUM(G23:G24) -> 0
C26: Restored Condition Score | E26: =SUM(E18,G25) -> 0

Sheet 1.2.5 Waterfowl
C3: 1.2.5 Waterfowl Breeding, Staging and/or Moulting Area
C5: Existing Condition
C7: Step 1 | D7: Does the project site already contain a wetland? | E7: 1 | I7: =IF(E7=1,"Continue onto Step #2",IF(E7=2,"Continue to Restored Condition")) -> Continue onto Step #2
C9: Step 2 | D9: Select the one option below that best represents the existing condition.
D10: Notes:
D11: Local records to be used to validate significance of waterfowl breeding, staging and/or moulting area
D12: Record must be no more than 20 years old to be considered valid.
D13: Geese are not considered an eligible species of waterfowl to score. Wetland restoration designs intended to benefit geese are not encouraged.
D14: no evidence of waterfowl breeding, staging and/or moulting | F14: 0
D15: evidence of waterfowl breeding, staging and/or moulting at any scale
D16: evidence of waterfowl breeding, staging and/or moulting to a scale that would be considered locally significant
D17: evidence of waterfowl breeding, staging and/or moulting to a scale that would be considered watershed significant
D18: evidence of waterfowl breeding, staging and/or moulting to a scale that would be considered provincially significant
C20: Existing Condition Score | E20: =IF(E7=2,0,IF(F14=1,0,IF(F14=2,2,IF(F14=3,4,IF(F14=4,7,IF(F14=5,10,0)))))) -> 0
C22: Restored Condition
C24: Step 1 | D24: Select the one option below that best represents the intended restored condition.
D25: no increase in wetland area | F25: 0 | G25: =IF(F25=1,0) -> FALSE
D26: increase in wetland area of up to 0.5 hectares | G26: =IF(F25=2,2) -> FALSE
D27: increase in wetland area of more than 0.5 hectares but less than 2 hectares | G27: =IF(F25=3,3) -> FALSE
D28: increase in wetland area of greater than or equal to 2 hectares | G28: =IF(F25=4,5) -> FALSE
G29: =SUM(G25:G28) -> 0
C30: Restored Condition Score | E30: =SUM(E20,G29) -> 0

Sheet 1.2.6 Passerine, Shorebird...
C3: 1.2.6 Migratory Passerine, Shorebird or Raptor Stopover Area
C5: Existing Condition
C7: Step 1 | D7: Does the project site already contain a wetland? | E7: 1 | J7: =IF(E7=1,"Continue onto Step #2",IF(E7=2,"Continue to Restored Condition")) -> Continue onto Step #2
C9: Step 2 | D9: Select the one option below that best represents the existing condition.
D10: Notes:
D11: Local records to be used to validate significance of migratory passerine, shorebird or raptor stopover area
D12: Record must be no more than 20 years old to be considered valid.
D13: no evidence of migratory passerine, shorebird or raptors utilizing the wetland for stopover habitat | F13: 0
D14: evidence of migratory passerine, shorebird or raptors utilizing the wetland for stopover habitat at any scale
D15: evidence of migratory passerine, shorebird or raptors utilizing the wetland for stopover habitat at a scale that would be considered locally significant
D16: evidence of migratory passerine, shorebird or raptors utilizing the wetland for stopover habitat at a scale that would be considered watershed significant
D17: evidence of migratory passerine, shorebird or raptors utilizing the wetland for stopover habitat at a scale that would be considered provincially significant
C19: Existing Condition Score | E19: =IF(E7=2,0,IF(F13=1,0,IF(F13=2,2,IF(F13=3,4,IF(F13=4,7,IF(F13=5,10,0)))))) -> 0
C21: Restored Condition
C23: Step 1 | D23: Select the one option below that best represents the intended restored condition.
D24: no increase in wetland area | F24: 0 | G24: =IF(F24=1,0) -> FALSE
D25: increase in wetland area of up to 0.5 hectares | G25: =IF(F24=2,2) -> FALSE
D26: increase in wetland area of more than 0.5 hectares but less than 2 hectares | G26: =IF(F24=3,3) -> FALSE
D27: increase in wetland area of greater than or equal to 2 hectares | G27: =IF(F24=4,5) -> FALSE
G28: =SUM(G24:G27) -> 0
C29: Restored Condition Score | E29: =SUM(E19,G28) -> 0

Sheet 1.2.7 Fish
C3: 1.2.7 Fish Habitat
C5: Existing Condition
C7: Step 1 | D7: Is there an existing wetland present at the project site? | E7: 1 | H7: =IF(E7=1, "Continue to Step 2", "Zero Points Scored, Skip Step 2 and Continue to Restored Conditions Evaluation") -> Continue to Step 2
C8: Step 2 | D8: Calculate the Fractional Area (FA) of the fish habitat types.
D9: Notes:
D10: FA is simply the fraction of the total wetland that is comprised of each fish habitat type. For example, if a wetland is 100% permanent habitat with piscivores the FA would be 1. If a wetland was 60% permanent habitat with piscivores and 40% permanent habitat without piscivores the FA would be .6 for permanent habitat with piscivores and .4 for permanent habitat without piscivores. It is important that the sum of the FA's total 1.
D11: When calculating FA only include the area up to the high water mark
D12: Record must be no more than 20 years old to be considered valid
D13: Piscivores: fish that eat other fish
D14: Fish stocking is not regarded as a wetland restoraiton activity
D15: Fractional Area - Seasonal habitat without piscivores | E15: 0 | G15: =E15*3 -> 0
D16: Fractional Area - Seasonal habitat with piscivores | E16: 0 | G16: =E16*8 -> 0
D17: Fractional Area - Permanent habitat without piscivores | E17: 0 | G17: =E17*15 -> 0
D18: Fractional Area - Permanent habitat with piscivores | E18: 0 | G18: =E18*20 -> 0
C20: Existing Condition Score | E20: =ROUND(IF(E7=2, 0, SUM(G15:G18)),0) -> 0
C22: Restored Condition
C24: Step 1 | D24: Calculate the Fractional Area (FA) of the intended fish habitat types.
D25: Fractional Area - Seasonal habitat without piscivores | E25: 0 | G25: =E25*3 -> 0
D26: Fractional Area - Seasonal habitat with piscivores | E26: 0 | G26: =E26*8 -> 0
D27: Fractional Area - Permanent habitat without piscivores | E27: 0 | G27: =E27*15 -> 0
D28: Fractional Area - Permanent habitat with piscivores | E28: 0 | G28: =E28*20 -> 0
C30: Restored Condition Score | E30: =ROUND(IF(E23=2, 0, SUM(G25:G28)),0) -> 0

Sheet 2.1.1 Flood Attenuation
C3: 2.1.1 Flood Attenuation Capacity
C5: Existing Condition
C7: Step 1 | D7: What is the catchment area upstream of the project site? | E7: 0 | F7: hectares
C9: Step 2 | D9: Using the table below select the value that best represents the land use, slope and soil type for the catchment and enter it here. | E9: 0
D11: LAND USE | E11: SANDY SOIL | H11: SANDY LOAM SOIL | K11: CLAY LOAM SOIL | N11: CLAY SOIL
E12: 0-2% | F12: 2-6% | G12: 0.06 | H12: 0-2% | I12: 2-6% | J12: 0.06 | K12: 0-2% | L12: 2-6% | M12: 0.06 | N12: 0-2% | O12: 2-6% | P12: 0.06
D13: CULTIVATED LAND | E13: 0.08 | F13: 0.13 | G13: 0.16 | H13: 0.11 | I13: 0.15 | J13: 0.21 | K13: 0.14 | L13: 0.19 | M13: 0.26 | N13: 0.18 | O13: 0.23 | P13: 0.31
D14: PASTURE | E14: 0.12 | F14: 0.2 | G14: 0.3 | H14: 0.18 | I14: 0.28 | J14: 0.37 | K14: 0.24 | L14: 0.34 | M14: 0.44 | N14: 0.3 | O14: 0.4 | P14: 0.5
D15: MEADOW | E15: 0.1 | F15: 0.16 | G15: 0.25 | H15: 0.14 | I15: 0.22 | J15: 0.3 | K15: 0.2 | L15: 0.28 | M15: 0.36 | N15: 0.24 | O15: 0.3 | P15: 0.4
D16: FOREST | E16: 0.05 | F16: 0.08 | G16: 0.11 | H16: 0.08 | I16: 0.11 | J16: 0.14 | K16: 0.1 | L16: 0.13 | M16: 0.16 | N16: 0.12 | O16: 0.16 | P16: 0.3
D17: RESIDENTIAL LOT (SIZE 0.05HA) | E17: 0.25 | F17: 0.28 | G17: 0.31 | H17: 0.27 | I17: 0.3 | J17: 0.35 | K17: 0.3 | L17: 0.33 | M17: 0.38 | N17: 0.33 | O17: 0.36 | P17: 0.42
D18: RESIDENTIAL LOT (SIZE 0.1HA) | E18: 0.22 | F18: 0.26 | G18: 0.29 | H18: 0.24 | I18: 0.29 | J18: 0.33 | K18: 0.27 | L18: 0.31 | M18: 0.36 | N18: 0.3 | O18: 0.34 | P18: 0.4
D19: RESIDENTIAL LOT (SIZE 0.13HA) | E19: 0.19 | F19: 0.23 | G19: 0.26 | H19: 0.22 | I19: 0.26 | J19: 0.3 | K19: 0.25 | L19: 0.29 | M19: 0.34 | N19: 0.28 | O19: 0.32 | P19: 0.39
D20: RESIDENTIAL LOT (SIZE 0.2HA) | E20: 0.16 | F20: 0.2 | G20: 0.24 | H20: 0.19 | I20: 0.23 | J20: 0.28 | K20: 0.22 | L20: 0.27 | M20: 0.32 | N20: 0.26 | O20: 0.3 | P20: 0.37
D21: RESIDENTIAL LOT (SIZE 0.4HA) | E21: 0.14 | F21: 0.19 | G21: 0.22 | H21: 0.17 | I21: 0.21 | J21: 0.26 | K21: 0.2 | L21: 0.25 | M21: 0.31 | N21: 0.24 | O21: 0.29 | P21: 0.35
D22: INDUSTRIAL | E22: 0.67 | F22: 0.68 | G22: 0.68 | H22: 0.68 | I22: 0.68 | J22: 0.69 | K22: 0.68 | L22: 0.69 | M22: 0.69 | N22: 0.69 | O22: 0.69 | P22: 0.7
D23: COMMERCIAL | E23: 0.71 | F23: 0.71 | G23: 0.72 | H23: 0.71 | I23: 0.72 | J23: 0.72 | K23: 0.72 | L23: 0.72 | M23: 0.72 | N23: 0.72 | O23: 0.72 | P23: 0.72
D24: STREETS | E24: 0.7 | F24: 0.71 | G24: 0.72 | H24: 0.71 | I24: 0.72 | J24: 0.74 | K24: 0.72 | L24: 0.73 | M24: 0.76 | N24: 0.73 | O24: 0.75 | P24: 0.78
D25: OPEN SPACE | E25: 0.05 | F25: 0.1 | G25: 0.14 | H25: 0.08 | I25: 0.13 | J25: 0.19 | K25: 0.12 | L25: 0.17 | M25: 0.24 | N25: 0.15 | O25: 0.21 | P25: 0.28
D26: PARKING | E26: 0.85 | F26: 0.86 | G26: 0.87 | H26: 0.85 | I26: 0.86 | J26: 0.87 | K26: 0.85 | L26: 0.86 | M26: 0.87 | N26: 0.85 | O26: 0.86 | P26: 0.87
C28: Step 3 | D28: Similar as in Step 2, using the table below select the value that best represents the land use, slope and soil type for the catchment and enter it here. | E28: 0
D30: LAND USE | E30: SANDY SOIL | H30: SANDY LOAM SOIL | K30: CLAY LOAM SOIL | N30: CLAY SOIL
E31: 0-2% | F31: 2-6% | G31: 0.06 | H31: 0-2% | I31: 2-6% | J31: 0.06 | K31: 0-2% | L31: 2-6% | M31: 0.06 | N31: 0-2% | O31: 2-6% | P31: 0.06
D32: CULTIVATED LAND | E32: 0.14 | F32: 0.18 | G32: 0.22 | H32: 0.16 | I32: 0.21 | J32: 0.28 | K32: 0.2 | L32: 0.25 | M32: 0.34 | N32: 0.24 | O32: 0.29 | P32: 0.41
D33: PASTURE | E33: 0.15 | F33: 0.25 | G33: 0.37 | H33: 0.23 | I33: 0.34 | J33: 0.45 | K33: 0.3 | L33: 0.42 | M33: 0.52 | N33: 0.37 | O33: 0.5 | P33: 0.62
D34: MEADOW | E34: 0.14 | F34: 0.22 | G34: 0.3 | H34: 0.2 | I34: 0.28 | J34: 0.37 | K34: 0.26 | L34: 0.35 | M34: 0.44 | N34: 0.3 | O34: 0.4 | P34: 0.5
D35: FOREST | E35: 0.08 | F35: 0.11 | G35: 0.14 | H35: 0.1 | I35: 0.14 | J35: 0.18 | K35: 0.12 | L35: 0.16 | M35: 0.2 | N35: 0.15 | O35: 0.2 | P35: 0.25
D36: RESIDENTIAL LOT (SIZE 0.05HA) | E36: 0.33 | F36: 0.37 | G36: 0.4 | H36: 0.35 | I36: 0.39 | J36: 0.44 | K36: 0.38 | L36: 0.42 | M36: 0.49 | N36: 0.41 | O36: 0.45 | P36: 0.54
D37: RESIDENTIAL LOT (SIZE 0.1HA) | E37: 0.3 | F37: 0.34 | G37: 0.37 | H37: 0.33 | I37: 0.37 | J37: 0.42 | K37: 0.36 | L37: 0.4 | M37: 0.47 | N37: 0.38 | O37: 0.42 | P37: 0.52
D38: RESIDENTIAL LOT (SIZE 0.13HA) | E38: 0.28 | F38: 0.32 | G38: 0.35 | H38: 0.3 | I38: 0.35 | J38: 0.39 | K38: 0.33 | L38: 0.38 | M38: 0.45 | N38: 0.36 | O38: 0.4 | P38: 0.5
D39: RESIDENTIAL LOT (SIZE 0.2HA) | E39: 0.25 | F39: 0.29 | G39: 0.32 | H39: 0.28 | I39: 0.32 | J39: 0.36 | K39: 0.31 | L39: 0.35 | M39: 0.42 | N39: 0.34 | O39: 0.38 | P39: 0.48
D40: RESIDENTIAL LOT (SIZE 0.4HA) | E40: 0.22 | F40: 0.26 | G40: 0.29 | H40: 0.24 | I40: 0.28 | J40: 0.34 | K40: 0.28 | L40: 0.32 | M40: 0.4 | N40: 0.31 | O40: 0.35 | P40: 0.46
D41: INDUSTRIAL | E41: 0.85 | F41: 0.85 | G41: 0.86 | H41: 0.85 | I41: 0.86 | J41: 0.86 | K41: 0.86 | L41: 0.86 | M41: 0.87 | N41: 0.86 | O41: 0.86 | P41: 0.88
D42: COMMERCIAL | E42: 0.88 | F42: 0.88 | G42: 0.89 | H42: 0.89 | I42: 0.89 | J42: 0.89 | K42: 0.89 | L42: 0.89 | M42: 0.9 | N42: 0.89 | O42: 0.89 | P42: 0.9
D43: STREETS | E43: 0.76 | F43: 0.77 | G43: 0.79 | H43: 0.8 | I43: 0.82 | J43: 0.84 | K43: 0.84 | L43: 0.85 | M43: 0.89 | N43: 0.89 | O43: 0.91 | P43: 0.95
D44: OPEN SPACE | E44: 0.11 | F44: 0.16 | G44: 0.2 | H44: 0.14 | I44: 0.19 | J44: 0.26 | K44: 0.18 | L44: 0.23 | M44: 0.32 | N44: 0.22 | O44: 0.27 | P44: 0.39
D45: PARKING | E45: 0.95 | F45: 0.96 | G45: 0.97 | H45: 0.95 | I45: 0.96 | J45: 0.97 | K45: 0.95 | L45: 0.96 | M45: 0.97 | N45: 0.95 | O45: 0.96 | P45: 0.97
C47: Step 3 | D47: Lookup rainfall amounts by navigating to the project site location on the Ministry of Transportation of Ontario website found here: mto.gov.on.ca/IDF_Curves/terms.shtml.
D48: Copy the 5, 10, 25 and 50 Year, 1 hour rainfall amounts (found in Row A) and record them in the corresponding location below.
D50: 1 hour rainfall amount - 5 Year Storm | E50: 0 | F50: mm | G50: How to calculate rainfall amounts | W50: Total Storm Volume - 5 Yr | X50: =$E$7*$E$9*E50 -> 0
D51: 1 hour rainfall amount - 10 Year Storm | E51: 0 | F51: mm | G51: 1) Click: here: | H51: http://www.mto.gov.on.ca/IDF_Curves/map_acquisition.shtml | W51: Total Storm Volume - 10 Yr | X51: =$E$7*$E$9*E51 -> 0
D52: 1 hour rainfall amount - 25 Year Storm | E52: 0 | F52: mm | G52: 2) Find the location of your project site and click on the map | W52: Total Storm Volume - 25 Yr | X52: =$E$7*$E$28*E52 -> 0
D53: 1 hour rainfall amount - 50 Year Storm | E53: 0 | F53: mm | G53: 3) Record the rainfall amounts listed in the row labeled "A" and enter them into the appropriate locations in the calculator (i.e. boxes to the left) | W53: Total Storm Volume - 50 Yr | X53: =$E$7*$E$28*E53 -> 0
D54: 1 hour rainfall amount - 100 Year Storm | E54: 0 | F54: mm | W54: Total Storm Volume - 100 Yr | X54: =$E$7*$E$28*E54 -> 0
C56: Step 4 | D56: What is the area of the existing wetland base (i.e. the lowest topographical zone of the wetland)? | E56: 0 | F56: m2 | W56: Total Potential Wetland Flood Volume Storage = | X56: =((E56+E58)/2)*E60 -> 0
C58: Step 5 | D58: What is the area of the existing wetland measured at the location of the high water mark? | E58: 0 | F58: m2
C60: Step 6 | D60: What is the vertical distance (i.e. depth of water) between the existing wetland base and the high water mark? | E60: 0 | F60: m
C62: Existing Condition Score | E62: =IF(X56>X54,75,IF(X56>X53,60,IF(X56>X52,45,IF(X56>X51,30,IF(X56>X50,15,0))))) -> 0
C64: Restored Condition
C66: Step 1 | D66: Upon construction of the proposed wetland restoration project, will the flood volume storage change compared to that of the existing condition? | E66: 1 | F66: =IF(E66=1, "Continue to Step 2", "Skip The Remaining Steps and Continue to 2.1.2 Groundwater Discharge") -> Continue to Step 2
C68: Step 2 | D68: What is the area of the proposed wetland base (i.e. the lowest topographical zone of the wetland)? | E68: 0 | F68: m2 | W68: Total Potential Wetland Flood Volume Storage = | X68: =((E68+E70)/2)*E72 -> 0
C70: Step 3 | D70: What is the area of the proposed wetland measured at the location of the high water mark? | E70: 0 | F70: m2
C72: Step 4 | D72: What is the vertical distance (i.e. depth of water) between the proposed wetland base and the high water mark? | E72: 0 | F72: m
C74: Restored Condition Score | E74: =IF(E66=2,E62,IF(X68>E54,75,IF(X68>E53,60,IF(X68>E52,45,IF(X68>E51,30,IF(X68>E50,15,0)))))) -> 0
D204: Dominant catchment land use | E204: 1
D205: Dominant catchment soil type | E205: 1
D206: Average catchment slope | E206: 1
D208: 1 hour rainfall amount - 5 Year Storm | E208: 21 | F208: mm | G208: How to calculate rainfall amounts
D209: 1 hour rainfall amount - 10 Year Storm | E209: 30 | F209: mm | G209: 1) Click: here: | H209: http://www.mto.gov.on.ca/IDF_Curves/map_acquisition.shtml
D210: 1 hour rainfall amount - 25 Year Storm | E210: 33 | F210: mm | G210: 2) Find the location of your project site and click on the map
D211: 1 hour rainfall amount - 50 Year Storm | E211: 36 | F211: mm | G211: 3) Record the rainfall amounts listed in the row labeled "A" and enter them into the appropriate locations in the calculator
D212: 1 hour rainfall amount - 100 Year Storm | E212: 50 | F212: mm
D217: 5 Year Flood Volume
D218: 10 Year Flood Volume
D219: 25 Year Flood Volume
D220: 50 Year Flood Volume
D221: 100 year Flood Volume
C225: Existing Condition Score | E225: =ROUND(IF(N7=2, 0, SUM(G7:G208)),0) -> 12
C227: Restored Condition
C229: Step 1 | D229: Calculate the Fractional Area (FA) of the wetland types.
D230: Note:
D231: FA is simply the fraction of the total wetland that is comprised of each of the wetland types. For example, if a wetland is 100% swamp the FA would be 1. If a wetland was 60% swamp and 40% marsh the FA would be .6 for swamp and .4 for marsh. It is important that the sum of the FA's total 1.
D232: Fractional Area - Marsh | E232: 0 | G232: =E232*5 -> 0
D233: Fractional Area - Swamp | E233: 0 | G233: =E233*8 -> 0
D234: Fractional Area - Bog and/or Fen | E234: 0 | G234: =E234*10 -> 0
C236: Restored Condition Score | E236: =ROUND(SUM(G232:G234),0) -> 0

Sheet 2.1.2 Groundwater Discharge
C3: 2.1.2 Groundwater Discharge
C5: Existing Condition
C7: Step 1 | D7: Select the options that best characterize the existing project site.
D8: Dominant wetland type | E8: 1 | F8: =IF(E8=1,0,IF(E8=2,2,IF(E8=3,2,IF(E8=4,5)))) -> 0
D9: Topography | E9: 1 | F9: =IF(E9=1,0,IF(E9=2,0,IF(E9=3,2,IF(E9=4,5)))) -> 0
D10: Wetland area:upslope catchment area | E10: 1 | F10: =IF(E10=1,0,IF(E10=2,2,IF(E10=3,5))) -> 0
D11: Lagg development | E11: 1 | F11: =IF(E11=1,0,IF(E11=2,2,IF(E11=3,5))) -> 0
D12: Seeps | E12: 1 | F12: =IF(E12=1,0,IF(E12=2,2,IF(E12=3,5))) -> 0
D13: Surface marl deposits | E13: 1 | F13: =IF(E13=1,0,IF(E13=2,5)) -> 0
D14: Iron precipitates | E14: 1 | F14: =IF(E14=1,0,IF(E14=2,5)) -> 0
C16: Existing Condition Score | E16: =IF(SUM(F8:F14)>25,25,SUM(F8:F14)) -> 0
C18: Restored Condition
C20: Step 1 | D20: Select the options that best characterize the intended restored condition.
D21: Dominant wetland type | E21: 1 | F21: =IF(E21=1,0,IF(E21=2,2,IF(E21=3,2,IF(E21=4,5)))) -> 0
D22: Topography | E22: 2 | F22: =IF(E22=1,0,IF(E22=2,0,IF(E22=3,2,IF(E22=4,5)))) -> 0
D23: Wetland area:upslope catchment area | E23: 1 | F23: =IF(E23=1,0,IF(E23=2,2,IF(E23=3,5))) -> 0
D24: Lagg development | E24: 1 | F24: =IF(E24=1,0,IF(E24=2,2,IF(E24=3,5))) -> 0
D25: Seeps | E25: 1 | F25: =IF(E25=1,0,IF(E25=2,2,IF(E25=3,5))) -> 0
C27: Restored Condition Score | E27: =SUM(F21:F25) -> 0

Sheet 2.1.3 Groundwater Recharge
C3: 2.1.3 Groundwater Recharge
C5: Existing Condition
C7: Step 1 | D7: Is the project site located within a municpal wellhead protection zone? | E7: 2 | F7: =IF(E7=1, "Contine to 2.2.1 Short Term Water Quality", IF(E7=2, "Continue to Step #2")) -> Continue to Step #2
C9: Step 2 | D9: Does a wetland currently exist at the project site? | E9: 2 | F9: =IF(E9=1,"Contine to Step 3",IF(E9=2,"Continue to Restored Condition Scoring")) -> Continue to Restored Condition Scoring
C11: Step 3 | D11: Is the exisitng wetland greater than 50% lacustrine (by area) or located on a major river (i.e. St. Clair, Detroit, Niagara, St. Lawrence, Ottawa)? | E11: 2 | F11: =IF(E11=1,"Continue to Restored Condition Scoring",IF(E11=2,"Continue to Step 4")) -> Continue to Step 4
C13: Step 4 | D13: Calculate the Fractional Area (FA) of the existing wetland site types.
D14: Note:
D15: FA is simply the fraction of the total wetland that is comprised of each of the wetland site types. For example, if a wetland is 100% lacustrine the FA would be 1. If a wetland was 60% lacustrine and 40% riverine the FA would be .6 for lacustrine and .4 for riverine. It is important that the sum of the FA's total 1.
D16: Fractional Area - Isolated | E16: 0 | G16: =E16*20 -> 0
D17: Fractional Area - Palustrine | E17: 0 | G17: =E17*20 -> 0
D18: Fractiona Area - Riverine | E18: 0 | G18: =E18*8 -> 0
D19: Fractional Area - Lacustrine | E19: 0 | G19: =E19*0 -> 0
G20: =IF(SUM(G16:G19)>25,25,SUM(G16:G19)) -> 0
C21: Step 5 | D21: Using the table below select the value that best represents the dominant wetland site type and soil type/condition and enter it here. | E21: 0
D23: DOMINANT WETLAND SITE TYPE (from step 4) | E23: SANDS, GRAVELS, LOAMS | F23: CLAYS, SUBSTRATES IN HIGH WATER TABLES OR SHALLOW SUBSTRATES OVER IMPERVIOUS MEATERIALS SUCH AS CONSOLIDATED BEDROCK
D24: Lacustrine or major river (i.e. St. Clair, Detroit, Niagara, St. Lawrence, Ottawa) | E24: 0 | F24: 0
D25: Isolated | E25: 5 | F25: 3
D26: Palustrine | E26: 4 | F26: 2
D27: Riverine (not on a major river) | E27: 2 | F27: 1
C29: Existing Condition Score | E29: =IF(E7=1,25,IF(E9=2,0,IF(E11=1,0,SUM(G20,E21,0)))) -> 0
C31: Restored Condition
C33: Step 1 | D33: Will the restored wetland be greater than 50% lacustrine (by area) or located on a major river (i.e. St. Clair, Detroit, Niagara, St. Lawrence, Ottawa)? | E33: 2 | F33: =IF(E33=1,"Contine to 2.2.1 Short Term Water Quality ",IF(E33=2,"Continue to Step 2")) -> Continue to Step 2
C35: Step 2 | D35: Calculate the Fractional Area (FA) of the proposed wetland site types.
D36: Fractional Area - Isolated | E36: 0 | G36: =E36*20 -> 0
D37: Fractional Area - Palustrine | E37: 0 | G37: =E37*20 -> 0
D38: Fractiona Area - Riverine | E38: 0 | G38: =E38*8 -> 0
D39: Fractional Area - Lacustrine | E39: 0 | G39: =E39*0 -> 0
G40: =IF(SUM(G36:G39)>25,25,SUM(G36:G39)) -> 0
C41: Step 3 | D41: Using the table below select the value that best represents the dominant wetland site type and soil type/condition and enter it here. | E41: 0
D43: DOMINANT WETLAND SITE TYPE (from step 4) | E43: SANDS, GRAVELS, LOAMS | F43: CLAYS, SUBSTRATES IN HIGH WATER TABLES OR SHALLOW SUBSTRATES OVER IMPERVIOUS MEATERIALS SUCH AS CONSOLIDATED BEDROCK
D44: Lacustrine or major river (i.e. St. Clair, Detroit, Niagara, St. Lawrence, Ottawa) | E44: 0 | F44: 0
D45: Isolated | E45: 5 | F45: 3
D46: Palustrine | E46: 4 | F46: 2
D47: Riverine (not on a major river) | E47: 2 | F47: 1
C49: Restored Condition Score | E49: =IF(E7=1,25,IF(E33=1,0,SUM(G40,E41))) -> 0

Sheet 2.2.1 ST Water Quality Wetland
C3: 2.2.1 Short-Term Water Quality Improvement in Wetland
C5: Existing Condition
C7: Step 1 | D7: Does a wetland currently exist at the project site? | E7: 1 | F7: =IF(E7=1,"Continue to Step 2",IF(E7=2,"Continue to Restored Condition Scoring")) -> Continue to Step 2
C9: Step 2 | D9: Is the exisitng wetland located on a major lake (i.e. Huron, Erie, St. Clair, Ontario, Simcoe) or major river (i.e. St. Clair, Detroit, Niagara, St. Lawrence, Ottawa )? | E9: 1 | F9: =IF(E9=1,"Continue to Restored Condition Scoring",IF(E9=2,"Continue to Step 3")) -> Continue to Restored Condition Scoring
C11: Step 3 | D11: Calculate the Fractional Area (FA) of the wetland site types.
D12: Note:
D13: FA is simply the fraction of the total wetland that is comprised of each of the wetland site types. For example, if a wetland is 100% lacustrine the FA would be 1. If a wetland was 60% lacustrine and 40% riverine the FA would be .6 for lacustrine and .4 for riverine. It is important that the sum of the FA's total 1.
D14: Fractional Area - Isolated | E14: 0 | G14: =E14*0.5 -> 0
D15: Fractional Area - Palustrine with no Inflow | E15: 0 | G15: =E15*0.7 -> 0
D16: Fractional Area - Palustrine with Inflow | E16: 0 | G16: =E16*1 -> 0
D17: Fractiona Area - Riverine | E17: 0 | G17: =E17*1 -> 0
D18: Fractional Area - Lacustrine on lake shoreline | E18: 0 | G18: =E18*0.2 -> 0
D19: Fractional Area - Lacustrine at lake Inflow or Outflow | E19: 0 | G19: =E19*1 -> 0
G20: =IF(SUM(G14:G19)>1,1,SUM(G14:G19)) -> 0
C21: Step 4 | D21: Which option best describes the land use in the upstream catchment? | E21: 3 | G21: =IF(E21=1,1,IF(E21=2,0.8,IF(E21=3,0.6))) -> 0.6
C23: Step 5 | D23: Calculate the Fractional Area (FA) of the vegetation types in the wetland.
D24: Fractional Area - Live Trees, Shrubs, Herbs or Mosses | E24: 0 | G24: =E24*0.75 -> 0
D25: Fractional Area - Emergent, Subemergent of Floating Vegetation | E25: 0 | G25: =E25*1 -> 0
D26: Fractional Area - Little or No Vegetation | E26: 0 | G26: =E26*0.5 -> 0
G27: =IF(SUM(G24:G26)>1,1,SUM(G24:G26)) -> 0
C28: Existing Condition Score | E28: =IF(E7=2,0,IF(E9=2,0,G27*G21*G20*50)) -> 0
C30: Restored Condition
C32: Step 1 | D32: Is the proposed wetland restoration project located on a major lake (i.e. Huron, Erie, St. Clair, Ontario, Simcoe) or major river (i.e. St. Clair, Detroit, Niagara, St. Lawrence, Ottawa )? | E32: 2 | F32: =IF(E32=1,"Contine to 2.2.2 Short Term Water Quality Improvement in Upland Buffer",IF(E32=2,"Continue to Step 2")) -> Continue to Step 2
C34: Step 2 | D34: Calculate the Fractional Area (FA) of the wetland site types.
D35: Note:
D36: FA is simply the fraction of the total wetland that is comprised of each of the wetland site types. For example, if a wetland is 100% lacustrine the FA would be 1. If a wetland was 60% lacustrine and 40% riverine the FA would be .6 for lacustrine and .4 for riverine. It is important that the sum of the FA's total 1.
D37: Fractional Area - Isolated | E37: 0 | G37: =E37*0.5 -> 0
D38: Fractional Area - Palustrine with no Inflow | E38: 0 | G38: =E38*0.7 -> 0
D39: Fractional Area - Palustrine with Inflow | E39: 0 | G39: =E39*1 -> 0
D40: Fractiona Area - Riverine | E40: 0 | G40: =E40*1 -> 0
D41: Fractional Area - Lacustrine on lake shoreline | E41: 0 | G41: =E41*0.2 -> 0
D42: Fractional Area - Lacustrine at lake Inflow or Outflow | E42: 0 | G42: =E42*1 -> 0
G43: =IF(SUM(G37:G42)>1,1,SUM(G37:G42)) -> 0
C44: Step 3 | D44: Which option best describes the land use in the upstream catchment? | E44: 1 | G44: =IF(E44=1,1,IF(E44=2,0.8,IF(E44=3,0.6))) -> 1
C46: Step 4 | D46: Calculate the Fractional Area (FA) of the vegetation types in the wetland.
D47: Fractional Area - Live Trees, Shrubs, Herbs or Mosses | E47: 0 | G47: =E47*0.75 -> 0
D48: Fractional Area - Emergent, Subemergent of Floating Vegetation | E48: 0 | G48: =E48*1 -> 0
D49: Fractional Area - Little or No Vegetation | E49: 0 | G49: =E49*0.5 -> 0
G50: =IF(SUM(G47:G49)>1,1,SUM(G47:G49)) -> 0
C51: Restored Condition Score | E51: =IF(E32=1,0,G50*G44*G43*50) -> 0

Sheet 2.2.2 ST Water Quality Buffer
C3: 2.2.2 Short-Term Water Quality Improvement in Upland Buffer
C5: Existing Condition
C7: Step 1 | D7: Does a wetland currently exist at the project site? | E7: 2 | F7: =IF(E7=1,"Continue to Step 2",IF(E7=2,"Continue to Restored Condition Scoring")) -> Continue to Restored Condition Scoring
C9: Step 2 | D9: Is the existing wetland buffered (on the subject property) with natural vegetation and left undisturbed (i.e. not mowed, harvested, tilled, etc.)? | E9: 1 | F9: =IF(E9=1,"Continue to Step 3",IF(E9=2,"Continue to Restored Conditions Scoring")) -> Continue to Step 3
C11: Step 3 | D11: Is the existing wetland buffer greater than or equal to 50m in width for the entire wetland boundary located on the subject property? | E11: 1 | F11: =IF(E11=1,"Continue to Restored Conditions Scoring",IF(E11=2,"Continue to Step 4")) -> Continue to Restored Conditions Scoring
C13: Step 4 | D13: Calculate the Fractional Area (FA) of the wetland site types.
D14: Note:
D15: FA is simply the fraction of the total wetland that is comprised of each of the wetland site types. For example, if a wetland is 100% lacustrine the FA would be 1. If a wetland was 60% lacustrine and 40% riverine the FA would be .6 for lacustrine and .4 for riverine. It is important that the sum of the FA's total 1.
D16: Fractional Area - Isolated | E16: 0 | G16: =E16*0.5 -> 0
D17: Fractional Area - Palustrine with no Inflow | E17: 0 | G17: =E17*0.7 -> 0
D18: Fractional Area - Palustrine with Inflow | E18: 0 | G18: =E18*1 -> 0
D19: Fractiona Area - Riverine | E19: 0 | G19: =E19*0.8 -> 0
D20: Fractional Area - Lacustrine on lake shoreline (not including major lakes) | E20: 0 | G20: =E20*0.5 -> 0
D21: Fractional Area - Lacustrine on lake shoreline (only major lakes) | E21: 0 | G21: =E21*0.2 -> 0
G22: =IF(SUM(G16:G21)>1,1,SUM(G16:G21)) -> 0
C23: Step 5 | D23: Which option best describes the land use in the upstream catchment? | E23: 1 | G23: =IF(E23=1,1,IF(E23=2,0.6,IF(E23=3,0.4))) -> 1
C25: Step 6 | D25: Which option best describes the vegetation in the buffer? | E25: 2 | G25: =IF(E25=1,0.3,IF(E25=2,1)) -> 1
C27: Step 7 | D27: What percentage of the wetland boundary is buffered on the subject property? | E27: 1 | G27: =IF(E27=1,1,IF(E27=2,0.5,IF(E27=3,0.2))) -> 1
C29: Step 8 | D29: How wide is the wetland buffer on the subject property? | E29: 1 | G29: =IF(E29=1,1,IF(E29=2,0.8,IF(E29=3,0.6,IF(E29=4,0.4)))) -> 1
C31: Step 9 | D31: How steep is the buffer on the subject property? | E31: 1 | G31: =IF(E31=1,1,IF(E31=2,0.8,IF(E31=3,0.6,IF(E31=4,0.4)))) -> 1
C33: Step 10 | D33: What soil type best describes the buffer area? | E33: 1 | G33: =IF(E33=1,1,IF(E33=2,0.7,IF(E33=3,0.4))) -> 1
C35: Existing Condition Score | E35: =IF(E7=2,0,IF(E9=2,0,IF(E11=1,50,(50*G22*G23*G25*G27*G29*G31*G33)))) -> 0
C37: Restored Condition
C39: Step 1 | D39: Upon completion of the proposed wetland restoration project, will the wetland buffer (on the subject property) be naturally vegetated and left undisturbed (i.e. not mowed, harvested, tilled, etc.)? | E39: 1 | F39: =IF(E39=1,"Continue to Step 2",IF(E39=2,"Continue to 2.2.3 Long-Term Nutrient Trap in Wetland")) -> Continue to Step 2
C41: Step 2 | D41: Upon completion of the proposed wetland restoration project, will the wetland buffer be greater than or equal to 50m in width for the entire wetland boundary located on the subject property? | E41: 2 | F41: =IF(E41=1,"Continue to 2.2.3 Long-Term Nutrient Trap in Wetland",IF(E41=2,"Continue to Step 3")) -> Continue to Step 3
C43: Step 3 | D43: Calculate the Fractional Area (FA) of the wetland site types.
D44: Note:
D45: FA is simply the fraction of the total wetland that is comprised of each of the wetland site types. For example, if a wetland is 100% lacustrine the FA would be 1. If a wetland was 60% lacustrine and 40% riverine the FA would be .6 for lacustrine and .4 for riverine. It is important that the sum of the FA's total 1.
D46: Fractional Area - Isolated | E46: 0 | G46: =E46*0.5 -> 0
D47: Fractional Area - Palustrine with no Inflow | E47: 0 | G47: =E47*0.7 -> 0
D48: Fractional Area - Palustrine with Inflow | E48: 0 | G48: =E48*1 -> 0
D49: Fractiona Area - Riverine | E49: 0 | G49: =E49*0.8 -> 0
D50: Fractional Area - Lacustrine on lake shoreline (not including major lakes) | E50: 0 | G50: =E50*0.5 -> 0
D51: Fractional Area - Lacustrine on lake shoreline (only major lakes) | E51: 0 | G51: =E51*0.2 -> 0
G52: =IF(SUM(G46:G51)>1,1,SUM(G46:G51)) -> 0
C53: Step 4 | D53: Which option best describes the land use in the upstream catchment? | E53: 1 | G53: =IF(E53=1,1,IF(E53=2,0.6,IF(E53=3,0.4))) -> 1
C55: Step 5 | D55: Which option best describes the vegetation in the buffer? | E55: 2 | G55: =IF(E55=1,0.3,IF(E55=2,1)) -> 1
C57: Step 6 | D57: What percentage of the wetland boundary is buffered on the subject property? | E57: 1 | G57: =IF(E57=1,1,IF(E57=2,0.5,IF(E57=3,0.2))) -> 1
C59: Step 7 | D59: How wide is the wetland buffer on the subject property? | E59: 1 | G59: =IF(E59=1,1,IF(E59=2,0.8,IF(E59=3,0.6,IF(E59=4,0.4)))) -> 1
C61: Step 8 | D61: How steep is the buffer on the subject property? | E61: 1 | G61: =IF(E61=1,1,IF(E61=2,0.8,IF(E61=3,0.6,IF(E61=4,0.4)))) -> 1
C63: Step 9 | D63: What soil type best describes the buffer area? | E63: 1 | G63: =IF(E63=1,1,IF(E63=2,0.7,IF(E63=3,0.4))) -> 1
C65: Restored Condition Score | E65: =IF(E39=2,0,IF(E41=1,50,(50*G52*G53*G55*G57*G59*G61*G63))) -> 0

Sheet 2.2.3 LT Water Quality
C3: 2.2.3 Long-Term Nutrient (Nitrogen and Phosphorus) Trap in Wetland
C5: Existing Condition
C7: Step 1 | D7: Does a wetland currently exist at the project site? | E7: 2 | F7: =IF(E7=1,"Continue to Step 2",IF(E7=2,"Continue to Restored Condition Scoring")) -> Continue to Restored Condition Scoring
C9: Step 2 | D9: Is the existing wetland located in a river mouth? | E9: 1 | F9: =IF(E9=1,"Continue to Restored Condition Scoring",IF(E9=2,"Continue to Step 3")) -> Continue to Restored Condition Scoring
C11: Step 3 | D11: Does the wetland have permanent open water? | E11: 2 | G11: =IF(E11=1,10,IF(E11=2,20)) -> 20
C13: Existing Condition Score | E13: =IF(E7=2,0,IF(E9=1,50,G11)) -> 0
C15: Restored Condition
C17: Step 1 | D17: Is the proposed wetland restoration project located in a river mouth? | E17: 2 | F17: =IF(E17=1,"Continue to 2.2.4 Shoreline Erosion Control",IF(E17=2,"Continue to Step 2")) -> Continue to Step 2
C19: Step 2 | D19: Does the proposed wetland restoration project intend to increase the area of permanent open water? | E19: 2 | G19: =IF(E19=1,20, 0) -> 0
C21: Restored Condition Score | E21: =IF(E17=1,50,IF(SUM(G19,E13)>50,50,SUM(G19,E13))) -> 0

Sheet 2.2.4 Erosion
C3: 2.2.4 Shoreline Erosion Control
C5: Existing Condition
C7: Step 1 | D7: Does a wetland currently exist at the project site? | E7: 2 | H7: =IF(E7=1,"Continue to Step 2",IF(E7=2,"Continue to Restored Condition Scoring")) -> Continue to Restored Condition Scoring
C9: Step 2 | D9: Is the existing wetland entirely isolated? | E9: 1 | H9: =IF(E9=1,"Continue to 2.2.5 Carbon Storage",IF(E9=2,"Continue to Step 3")) -> Continue to 2.2.5 Carbon Storage
C11: Step 3 | D11: Calculate the Fractional Area (FA) of the wetland shoreline vegetation.
D12: Note:
D13: FA is simply the fraction of the total wetland shoreline that is comprised of each of the wetland vegetation types. For example, if a wetland shoreline is 100% trees and shrubs the FA would be 1. If a wetland shoreline was 60% trees and shrubs and 40% emergent vegetation the FA would be .6 for trees and shrubs and .4 for emergent. It is important that the sum of the FA's total 1.
D14: Fractional Area - Tree and shrub shoreline | E14: 0 | G14: =E14*25 -> 0
D15: Fractional Area - Emergent vegetation shoreline | E15: 0 | G15: =E15*12 -> 0
D16: Fractional Area - Submergent vegetation shoreline | E16: 0 | G16: =E16*9 -> 0
D17: Fractiona Area - Other shoreline vegetation | E17: 0 | G17: =E17*6 -> 0
D18: Fractional Area - No vegetation | E18: 0 | G18: =E18*0 -> 0
G19: =IF(SUM(G14:G18)>25,25,SUM(G14:G18)) -> 0
C20: Existing Condition Score | E20: =IF(E7=2,0,IF(E9=1,0,G19)) -> 0
C22: Restored Condition
C24: Step 1 | D24: Will the proposed wetland restoration project be entirely isolated? | E24: 2 | H24: =IF(E24=1,"Continue to 2.2.5 Carbon Storage",IF(E24=2,"Continue to Step 2")) -> Continue to Step 2
C26: Step 2 | D26: Calculate the Fractional Area (FA) of the proposed wetland shoreline vegetation.
D27: Note:
D28: FA is simply the fraction of the total wetland shoreline that is comprised of each of the wetland vegetation types. For example, if a wetland shoreline is 100% trees and shrubs the FA would be 1. If a wetland shoreline was 60% trees and shrubs and 40% emergent vegetation the FA would be .6 for trees and shrubs and .4 for emergent. It is important that the sum of the FA's total 1.
D29: Fractional Area - Tree and shrub shoreline | E29: 0 | G29: =E29*25 -> 0
D30: Fractional Area - Emergent vegetation shoreline | E30: 0 | G30: =E30*12 -> 0
D31: Fractional Area - Submergent vegetation shoreline | E31: 0 | G31: =E31*9 -> 0
D32: Fractiona Area - Other shoreline vegetation | E32: 0 | G32: =E32*6 -> 0
D33: Fractional Area - No vegetation | E33: 0 | G33: =E33*0 -> 0
G34: =IF(SUM(G29:G33)>25,25,SUM(G29:G33)) -> 0
C36: Restored Condition Score | E36: =IF(E24=1,0,G34) -> 0

Sheet 2.2.5 Carbon Storage
C3: 2.2.5 Carbon Storage
C5: Existing Condition
C7: Step 1 | D7: Does a wetland currently exist at the project site? | E7: 2 | H7: =IF(E7=1,"Continue to Step 2",IF(E7=2,"Continue to Restored Condition Scoring")) -> Continue to Restored Condition Scoring
C9: Step 2 | D9: Does the wetland have permanent open water? | E9: 1 | H9: =IF(E9=1,"Continue to Restored Condition Scoring",IF(E9=2,"Continue to Restored Condition Scoring")) -> Continue to Restored Condition Scoring
C11: Existing Condition Score | E11: =IF(E7=2,0,IF(E9=1,15,5)) -> 0
C13: Restored Condition
C15: Step 1 | D15: Does the proposed wetland restoration project intend to increase the area of permanent open water? | E15: 2 | G15: =IF(E15=1,10, 0) -> 0
C17: Restored Condition Score | E17: =IF(E15=1,SUM(E11,G15),E11) -> 0

Sheet 3.1.1 Goods
C3: 3.1.1 Sustainable Use to the Wetland for Harvesting Goods
C5: Restored Condition
C7: Step 1 | D7: Upon completion of the proposed project will the wetland be used for the harvesting of goods (i.e. food, fuel, fibre)? | E7: 2 | G7: =IF(E7=1,"Continue to Step 2","Continue to 3.2.1 Recreation") -> Continue to 3.2.1 Recreation
C9: Step 2 | D9: Will the harvests take place in accordance with best management practices (i.e. fuel and fibre wood products harvested in accordance with a Managed Forest Plan and only licensed trappers, hunters and anglers granted access. | E9: 1
D10: Notes:
D11: If the timber associated with the wetland is immature at the moment and the Managed Forest Plan does not call for a thinning within the next 10 years answer "yes".
D12: If fish are harvested by a licensed angler choose "yes" but do not score angling as a recreational activity in 3.2.1.
D13: Due to the devastating impacts to wetland quality, peat extraction is not recognized as sustainable use of the wetland.
C15: Restored Condition Score | E15: =IF(E7=2,0,IF(E9=1,25,0)) -> 0

Sheet 3.2.1 Recreation
C3: 3.2.1 Sustainable Use of the Wetland for Recreation
C5: Restored Condition
C7: Step 1 | D7: Upon completion of the proposed project will the wetland be used for recreation (i.e catch and release fishing, hiking, bird watching and nature enjoyment)? | E7: 2 | F7: =IF(E7=1,"Continue to Step 2","Continue to 3.3.1 Landscape Aesthetics") -> Continue to 3.3.1 Landscape Aesthetics
D8: Note:
D9: Only include catch and release fishing in the recreation section.
C11: Step 2 | D11: What frequency of public access will be granted by the landowner? | E11: 1
C13: Restored Condition Score | E13: =IF(E7=2,0,IF(E11=1,10,IF(E11=2,20,IF(E11=3,25)))) -> 0

Sheet 3.3.1 Aesthetics
C3: 3.3.1 Landscape Aesthetics
C5: Existing Condition
C7: Step 1 | D7: Does a wetland currently exist at the project site? | E7: 2 | F7: =IF(E7=1,"Continue to Step 2",IF(E7=2,"Continue to Restored Condition Scoring")) -> Continue to Restored Condition Scoring
C9: Step 2 | D9: What is the distance between the existing wetland and the closest public space (i.e. road, trail, navigable water, neighbouring property, etc.) and is the wetland distinctly recognizable? | E9: 1
C11: Restored Condition Score | E11: =IF(E7=2,0,IF(E9=1,0,IF(E9=2,10,IF(E9=3,20,IF(E9=4,25))))) -> 0
C13: Restored Condition
C15: Step 1 | D15: What is the distance between the proposed wetland and the closest public space (i.e. road, trail, navigable water, neighbouring property, etc.) and will the wetland be distinctly recognizable? | E15: 1
C17: Restored Condition Score | E17: =IF(E15=1,0,IF(E15=2,10,IF(E15=3,20,IF(E15=4,25)))) -> 0

Sheet 3.4.1 Education & Research
C3: 3.4.1 Education and Research
C5: Restored Condition
C7: Step 1 | D7: Upon completion of the proposed project will the wetland be used for education and/or research? | E7: 2 | F7: =IF(E7=1,"Continue to Step 2","Continue to 3.5.1 Enhancement to the Historical, Religious, and/or Spiritual Value") -> Continue to 3.5.1 Enhancement to the Historical, Religious, and/or Spiritual Value
C9: Step 2 | D9: What frequency of public access will be granted by the landowner? | E9: 1
C11: Restored Condition Score | E11: =IF(E7=2,0,IF(E9=1,10,IF(E9=2,20,IF(E9=3,25)))) -> 0

Sheet 3.5.1 Historical, Religious &..
C3: 3.5.1 Enhancement to the Historical, Religious and/or Spiritual Value
C5: Restored Condition
C7: Step 1 | D7: Will the proposed project enhance the historical, religious and/or spiritual value of the wetland? | E7: 2
D8: Note:
D9: Eligible enhancements include: interpretive signage (e.g. sign informing visitors of a historic trade route through the wetland or preservation of a historical dam), public use of the wetland for religious ceremonies, or presence of sacred sites or use of the wetland for song, chant and/or stories.
C11: Restored Condition Score | E11: =IF(E7=1,25,0) -> 0

Sheet EBI Scores
C3: Environmental Benefit Index Scores
C5: Component | D5: Sub Component | E5: Attribute | F5: Existing Condition | H5: Restored Condition | J5: Change in Condition
F6: Maximum Points | G6: Score | H6: Maximum Points | I6: Score
C7: Biological | D7: Wetland Site Characteristics and Biodiversity | E7: Wetland Type | F7: 10 | G7: ='1.1.1 Type'!E15 -> 0 | H7: 10 | I7: ='1.1.1 Type'!E24 -> 0 | J7: =I7-G7 -> 0
E8: Effective Project Area | F8: 0 | G8: 0 | H8: 20 | I8: ='1.1.2 Area'!E16 -> 0 | J8: =I8-G8 -> 0
E9: Proximity to Other Wetlands | F9: 10 | G9: ='1.1.3 Proximity'!E13 -> 0 | H9: 10 | I9: ='1.1.3 Proximity'!E23 -> 0 | J9: 0
E10: Permanent and Seasonal Open Water Types | F10: 10 | G10: ='1.1.4 Open Water'!E23 -> 0 | H10: 10 | I10: ='1.1.4 Open Water'!E38 -> 0 | J10: 0
E11: Interspersion | F11: 10 | G11: ='1.1.5 Interspersion'!E14 -> 0 | H11: 10 | I11: ='1.1.5 Interspersion'!E25 -> 0 | J11: 0
E12: Vegetation Communities on the Site | F12: 45 | G12: ='1.1.6 Vegetation Communities'!E12 -> 0 | H12: 45 | I12: ='1.1.6 Vegetation Communities'!E21 -> 0 | J12: 0
E13: Diversity of Surrounding Habitat | F13: 10 | G13: ='1.1.7 Diversity'!E21 -> 0 | H13: 10 | I13: ='1.1.7 Diversity'!E37 -> 0 | J13: 0
E14: Carbon Sequestration | F14: 15 | G14: ='1.1.8 Carbon Sequestration'!E12 -> 0 | H14: 25 | I14: ='1.1.8 Carbon Sequestration'!E23 -> 0 | J14: 0
E15: SUBTOTAL | F15: =SUM(F7:F14) -> 110 | G15: =SUM(G7:G14) -> 0 | H15: =SUM(H7:H14) -> 140 | I15: =SUM(I7:I14) -> 0 | J15: =SUM(J7:J14) -> 0
D16: Wildlife and Wildlife Habitat | E16: Reproductive Habitat for Endangered and/or Threatened Species | F16: 12 | G16: ='1.2.1 Reproductive Habitat'!E18 -> 0 | H16: 24 | I16: ='1.2.1 Reproductive Habitat'!E27 -> 0 | J16: 0
E17: Traditional Migration, Feeding or Hibernation Habitat for Endangered and/or Threatened Species | F17: 12 | G17: ='1.2.2 Migration...Habitat'!E18 -> 0 | H17: 24 | I17: ='1.2.2 Migration...Habitat'!E27 -> 0 | J17: 0
E18: Presence of Locally, Regionally, and/or Provincially Significant Plan and Animal Species | F18: 20 | G18: ='1.2.3 Significant Species'!E16 -> 0 | H18: 30 | I18: ='1.2.3 Significant Species'!E25 -> 0 | J18: 0
E19: Nesting and Feeding Habitat for Colonial Waterbirds | F19: 10 | G19: ='1.2.4 Colonial Waterbirds'!E18 -> 0 | H19: 15 | I19: ='1.2.4 Colonial Waterbirds'!E26 -> 0 | J19: 0
E20: Waterfowl Breeding, Staging and/or Moulting Area | F20: 10 | G20: ='1.2.5 Waterfowl'!E20 -> 0 | H20: 15 | I20: ='1.2.5 Waterfowl'!E30 -> 0 | J20: 0
E21: Migratory Passerine, Shorebird, or Raptor Stopover Area | F21: 10 | G21: ='1.2.6 Passerine, Shorebird...'!E19 -> 0 | H21: 15 | I21: ='1.2.6 Passerine, Shorebird...'!E29 -> 0 | J21: 0
E22: Fish Habitat | F22: 20 | G22: ='1.2.7 Fish'!E20 -> 0 | H22: 20 | I22: ='1.2.7 Fish'!E30 -> 0 | J22: 0
E23: SUBTOTAL | F23: =SUM(F16:F22) -> 94 | G23: =SUM(G16:G22) -> 0 | H23: =SUM(H16:H22) -> 143 | I23: =SUM(I16:I22) -> 0 | J23: =SUM(J16:J22) -> 0
E24: TOTAL | F24: =SUM(F15,F23) -> 204 | G24: =SUM(G15,G23) -> 0 | H24: =SUM(H15,H23) -> 283 | I24: =SUM(I15,I23) -> 0 | J24: =SUM(J15,J23) -> 0
C25: Hydrological | D25: Flood Attenuation and Ground Water Recharge/Discharge | E25: Flood Attenuation Capacity | F25: 75 | G25: ='2.1.1 Flood Attenuation'!E62 -> 0 | H25: 75 | I25: ='2.1.1 Flood Attenuation'!E74 -> 0 | J25: =I25-G25 -> 0
E26: Ground Water Discharge | F26: 25 | G26: ='2.1.2 Groundwater Discharge'!E16 -> 0 | H26: 25 | I26: ='2.1.2 Groundwater Discharge'!E27 -> 0 | J26: 0
E27: Ground Water Recharge | F27: 25 | G27: ='2.1.3 Groundwater Recharge'!E29 -> 0 | H27: 25 | I27: ='2.1.3 Groundwater Recharge'!E49 -> 0 | J27: 0
E28: SUBTOTAL | F28: =SUM(F25:F27) -> 125 | G28: =SUM(G25:G27) -> 0 | H28: =SUM(H25:H27) -> 125 | I28: =SUM(I25:I27) -> 0 | J28: =SUM(J25:J27) -> 0
D29: Water Quality and Carbon Storage | E29: Short-Term Water Quality Improvement (in wetland) | F29: 50 | G29: ='2.2.1 ST Water Quality Wetland '!E28 -> 0 | H29: 50 | I29: ='2.2.1 ST Water Quality Wetland '!E51 -> 0 | J29: 0
E30: Short-Term Water Quality Improvement (in upland buffer) | F30: 50 | G30: ='2.2.2 ST Water Quality Buffer'!E35 -> 0 | H30: 50 | I30: ='2.2.2 ST Water Quality Buffer'!E65 -> 0 | J30: 0
E31: Long-Term Nutrient Trap (in wetland) | F31: 50 | G31: ='2.2.3 LT Water Quality'!E13 -> 0 | H31: 50 | I31: ='2.2.3 LT Water Quality'!E21 -> 0 | J31: 0
E32: Shoreline Erosion Control | F32: 25 | G32: ='2.2.4 Erosion'!E20 -> 0 | H32: 25 | I32: ='2.2.4 Erosion'!E36 -> 0 | J32: 0
E33: Carbon Storage | F33: 15 | G33: ='2.2.5 Carbon Storage'!E11 -> 0 | H33: 25 | I33: ='2.2.5 Carbon Storage'!E17 -> 0 | J33: =I33-G33 -> 0
E34: SUBTOTAL | F34: =SUM(F29:F33) -> 190 | G34: =SUM(G29:G33) -> 0 | H34: =SUM(H29:H33) -> 200 | I34: =SUM(I29:I33) -> 0 | J34: =SUM(J29:J33) -> 0
E35: TOTAL | F35: =SUM(F28,F34) -> 315 | G35: =SUM(G28,G34) -> 0 | H35: =SUM(H28,H34) -> 325 | I35: =SUM(I28,I34) -> 0 | J35: =SUM(J28,J34) -> 0
C36: Social | D36: Goods | E36: Sustainable Use of Wetland for Harvesting Food and/or Fuel and/or Fibre | F36: 0 | G36: 0 | H36: 25 | I36: ='3.1.1 Goods'!E15 -> 0 | J36: =I36-G36 -> 0
E37: SUBTOTAL | F37: =SUM(F36:F36) -> 0 | G37: =SUM(G36:G36) -> 0 | H37: =SUM(H36:H36) -> 25 | I37: =SUM(I36:I36) -> 0 | J37: =SUM(J36:J36) -> 0
D38: Recreation | E38: Sustainable use of the Wetland for Catch and Release Fishing, Hiking, Bird Watching and Nature Enjoyment | F38: 0 | G38: 0 | H38: 25 | I38: ='3.2.1 Recreation'!E13 -> 0 | J38: =I38-G38 -> 0
E39: SUBTOTAL | F39: =SUM(F38:F38) -> 0 | G39: =SUM(G38:G38) -> 0 | H39: =SUM(H38:H38) -> 25 | I39: =SUM(I38:I38) -> 0 | J39: =SUM(J38:J38) -> 0
D40: Aesthetics | E40: Landscape Aesthetics | F40: 25 | G40: ='3.3.1 Aesthetics'!E11 -> 0 | H40: 25 | I40: ='3.3.1 Aesthetics'!E17 -> 0 | J40: =I40-G40 -> 0
E41: SUBTOTAL | F41: =SUM(F40) -> 25 | G41: =SUM(G40) -> 0 | H41: =SUM(H40) -> 25 | I41: =SUM(I40) -> 0 | J41: =SUM(J40) -> 0
D42: Education and Research | E42: Use of the Wetland for Education and Research Activities | F42: 0 | G42: 0 | H42: 25 | I42: ='3.4.1 Education & Research'!E11 -> 0 | J42: =I42-G42 -> 0
E43: SUBTOTAL | F43: =SUM(F42) -> 0 | G43: =SUM(G42) -> 0 | H43: =SUM(H42) -> 25 | I43: =SUM(I42) -> 0 | J43: =SUM(J42) -> 0
D44: Cultural and Aboriginal Values | E44: Enhancement to the Historical, Religious and/or Spiritual Value of the Wetland | F44: 0 | G44: 0 | H44: 25 | I44: ='3.5.1 Historical, Religious &..'!E11 -> 0 | J44: =I44-G44 -> 0
E45: SUBTOTAL | F45: =SUM(F44) -> 0 | G45: =SUM(G44) -> 0 | H45: =SUM(H44) -> 25 | I45: =SUM(I44) -> 0 | J45: =SUM(J44) -> 0
E46: TOTAL | F46: =SUM(F37,F39,F41,F43,F45) -> 25 | G46: =SUM(G37,G39,G41,G43,G45) -> 0 | H46: =SUM(H37,H39,H41,H43,H45) -> 125 | I46: =SUM(I37,I39,I41,I43,I45) -> 0 | J46: =SUM(J37,J39,J41,J43,J45) -> 0
E47: GRAND TOTAL | F47: =SUM(F24,F35,F46) -> 544 | G47: =SUM(G24,G35,G46) -> 0 | H47: =SUM(H24,H35,H46) -> 733 | I47: =SUM(I24,I35,I46) -> 0 | J47: =SUM(J24,J35,J46) -> 0
E48: WEIGHTING | F48: 0.55 | J48: 0.45
E49: ADJUSTED SCORE | F49: =G47*F48 -> 0 | J49: =J47*J48 -> 0
E50: EBI SCORE | F50: =SUM(F49,J49) -> 0
C52: Bonus Scores
C53: Climate Change Score | D53: =SUM(J14,J25,J26,J27,J33) -> 0 | E53: out of a possible 175
C54: Pollution Reduction Score | D54: =SUM(J14,J29,J30,J31,J32,J33) -> 0 | E54: out of a possible 225

Sheet Admin.
A1: NOTE: DO NOT MAKE EDITS TO THIS PAGE UNLESS YOU WISH TO CHANGE THE FUNCTIONALITY OF THE CALCULATOR. IN THIS CASE, MAKE EDITS WITH CAUTION!
A2: YES
A3: NO
A5: CULTIVATED LAND
A6: PASTURE
A7: MEADOW
A8: FOREST
A9: RESIDENTIAL LOT (SIZE 0.05HA)
A10: RESIDENTIAL LOT (SIZE 0.1HA)
A11: RESIDENTIAL LOT (SIZE 0.13HA)
A12: RESIDENTIAL LOT (SIZE 0.2HA)
A13: RESIDENTIAL LOT (SIZE 0.4HA)
A14: INDUSTRIAL
A15: COMMERCIAL
A16: STREETS
A17: OPEN SPACE
A18: PARKING
A20: SAND
A21: SANDY LOAM
A22: CLAY LOAM
A23: CLAY
A25: 0-2%
A26: 2-6%
A27: >6%
A29: FOR STORM INERVALS LESS THAN 25 YEARS
A30: ID | B30: LAND USE | C30: 0-2% / SANDY | D30: 2-6% / SANDY | E30: 6% / SANDY | F30: 0-2% / SANDY LOAM | G30: 2-6% / SANDY LOAM | H30: 6% / SANDY LOAM | I30: 0-2% / CLAY LOAM | J30: 2-6% / CLAY LOAM | K30: 6% / CLAY LOAM | L30: 0-2% / CLAY | M30: 2-6% / CLAY | N30: 6% / CLAY
A31: 1 | B31: CULTIVATED LAND | C31: 0.08 | D31: 0.13 | E31: 0.16 | F31: 0.11 | G31: 0.15 | H31: 0.21 | I31: 0.14 | J31: 0.19 | K31: 0.26 | L31: 0.18 | M31: 0.23 | N31: 0.31
A32: 2 | B32: PASTURE | C32: 0.12 | D32: 0.2 | E32: 0.3 | F32: 0.18 | G32: 0.28 | H32: 0.37 | I32: 0.24 | J32: 0.34 | K32: 0.44 | L32: 0.3 | M32: 0.4 | N32: 0.5
A33: 3 | B33: MEADOW | C33: 0.1 | D33: 0.16 | E33: 0.25 | F33: 0.14 | G33: 0.22 | H33: 0.3 | I33: 0.2 | J33: 0.28 | K33: 0.36 | L33: 0.24 | M33: 0.3 | N33: 0.4
A34: 4 | B34: FOREST | C34: 0.05 | D34: 0.08 | E34: 0.11 | F34: 0.08 | G34: 0.11 | H34: 0.14 | I34: 0.1 | J34: 0.13 | K34: 0.16 | L34: 0.12 | M34: 0.16 | N34: 0.3
A35: 5 | B35: RESIDENTIAL LOT (SIZE 0.05HA) | C35: 0.25 | D35: 0.28 | E35: 0.31 | F35: 0.27 | G35: 0.3 | H35: 0.35 | I35: 0.3 | J35: 0.33 | K35: 0.38 | L35: 0.33 | M35: 0.36 | N35: 0.42
A36: 6 | B36: RESIDENTIAL LOT (SIZE 0.1HA) | C36: 0.22 | D36: 0.26 | E36: 0.29 | F36: 0.24 | G36: 0.29 | H36: 0.33 | I36: 0.27 | J36: 0.31 | K36: 0.36 | L36: 0.3 | M36: 0.34 | N36: 0.4
A37: 7 | B37: RESIDENTIAL LOT (SIZE 0.13HA) | C37: 0.19 | D37: 0.23 | E37: 0.26 | F37: 0.22 | G37: 0.26 | H37: 0.3 | I37: 0.25 | J37: 0.29 | K37: 0.34 | L37: 0.28 | M37: 0.32 | N37: 0.39
A38: 8 | B38: RESIDENTIAL LOT (SIZE 0.2HA) | C38: 0.16 | D38: 0.2 | E38: 0.24 | F38: 0.19 | G38: 0.23 | H38: 0.28 | I38: 0.22 | J38: 0.27 | K38: 0.32 | L38: 0.26 | M38: 0.3 | N38: 0.37
A39: 9 | B39: RESIDENTIAL LOT (SIZE 0.4HA) | C39: 0.14 | D39: 0.19 | E39: 0.22 | F39: 0.17 | G39: 0.21 | H39: 0.26 | I39: 0.2 | J39: 0.25 | K39: 0.31 | L39: 0.24 | M39: 0.29 | N39: 0.35
A40: 10 | B40: INDUSTRIAL | C40: 0.67 | D40: 0.68 | E40: 0.68 | F40: 0.68 | G40: 0.68 | H40: 0.69 | I40: 0.68 | J40: 0.69 | K40: 0.69 | L40: 0.69 | M40: 0.69 | N40: 0.7
A41: 11 | B41: COMMERCIAL | C41: 0.71 | D41: 0.71 | E41: 0.72 | F41: 0.71 | G41: 0.72 | H41: 0.72 | I41: 0.72 | J41: 0.72 | K41: 0.72 | L41: 0.72 | M41: 0.72 | N41: 0.72
A42: 12 | B42: STREETS | C42: 0.7 | D42: 0.71 | E42: 0.72 | F42: 0.71 | G42: 0.72 | H42: 0.74 | I42: 0.72 | J42: 0.73 | K42: 0.76 | L42: 0.73 | M42: 0.75 | N42: 0.78
A43: 13 | B43: OPEN SPACE | C43: 0.05 | D43: 0.1 | E43: 0.14 | F43: 0.08 | G43: 0.13 | H43: 0.19 | I43: 0.12 | J43: 0.17 | K43: 0.24 | L43: 0.15 | M43: 0.21 | N43: 0.28
A44: 14 | B44: PARKING | C44: 0.85 | D44: 0.86 | E44: 0.87 | F44: 0.85 | G44: 0.86 | H44: 0.87 | I44: 0.85 | J44: 0.86 | K44: 0.87 | L44: 0.85 | M44: 0.86 | N44: 0.87
A46: FOR STORM RECURRENCE INTERVALS OF 25 YEARS OR GREATER
A47: LAND USE | B47: 0-2% / SANDY | C47: 2-6% / SANDY | D47: 6% / SANDY | E47: 0-2% / SANDY LOAM | F47: 2-6% / SANDY LOAM | G47: 6% / SANDY LOAM | H47: 0-2% / CLAY LOAM | I47: 2-6% / CLAY LOAM | J47: 6% / CLAY LOAM | K47: 0-2% / CLAY | L47: 2-6% / CLAY | M47: 6% / CLAY
A48: CULTIVATED LAND | B48: 0.14 | C48: 0.18 | D48: 0.22 | E48: 0.16 | F48: 0.21 | G48: 0.28 | H48: 0.2 | I48: 0.25 | J48: 0.34 | K48: 0.24 | L48: 0.29 | M48: 0.41
A49: PASTURE | B49: 0.15 | C49: 0.25 | D49: 0.37 | E49: 0.23 | F49: 0.34 | G49: 0.45 | H49: 0.3 | I49: 0.42 | J49: 0.52 | K49: 0.37 | L49: 0.5 | M49: 0.62
A50: MEADOW | B50: 0.14 | C50: 0.22 | D50: 0.3 | E50: 0.2 | F50: 0.28 | G50: 0.37 | H50: 0.26 | I50: 0.35 | J50: 0.44 | K50: 0.3 | L50: 0.4 | M50: 0.5
A51: FOREST | B51: 0.08 | C51: 0.11 | D51: 0.14 | E51: 0.1 | F51: 0.14 | G51: 0.18 | H51: 0.12 | I51: 0.16 | J51: 0.2 | K51: 0.15 | L51: 0.2 | M51: 0.25
A52: RESIDENTIAL LOT (SIZE 0.05HA) | B52: 0.33 | C52: 0.37 | D52: 0.4 | E52: 0.35 | F52: 0.39 | G52: 0.44 | H52: 0.38 | I52: 0.42 | J52: 0.49 | K52: 0.41 | L52: 0.45 | M52: 0.54
A53: RESIDENTIAL LOT (SIZE 0.1HA) | B53: 0.3 | C53: 0.34 | D53: 0.37 | E53: 0.33 | F53: 0.37 | G53: 0.42 | H53: 0.36 | I53: 0.4 | J53: 0.47 | K53: 0.38 | L53: 0.42 | M53: 0.52
A54: RESIDENTIAL LOT (SIZE 0.13HA) | B54: 0.28 | C54: 0.32 | D54: 0.35 | E54: 0.3 | F54: 0.35 | G54: 0.39 | H54: 0.33 | I54: 0.38 | J54: 0.45 | K54: 0.36 | L54: 0.4 | M54: 0.5
A55: RESIDENTIAL LOT (SIZE 0.2HA) | B55: 0.25 | C55: 0.29 | D55: 0.32 | E55: 0.28 | F55: 0.32 | G55: 0.36 | H55: 0.31 | I55: 0.35 | J55: 0.42 | K55: 0.34 | L55: 0.38 | M55: 0.48
A56: RESIDENTIAL LOT (SIZE 0.4HA) | B56: 0.22 | C56: 0.26 | D56: 0.29 | E56: 0.24 | F56: 0.28 | G56: 0.34 | H56: 0.28 | I56: 0.32 | J56: 0.4 | K56: 0.31 | L56: 0.35 | M56: 0.46
A57: INDUSTRIAL | B57: 0.85 | C57: 0.85 | D57: 0.86 | E57: 0.85 | F57: 0.86 | G57: 0.86 | H57: 0.86 | I57: 0.86 | J57: 0.87 | K57: 0.86 | L57: 0.86 | M57: 0.88
A58: COMMERCIAL | B58: 0.88 | C58: 0.88 | D58: 0.89 | E58: 0.89 | F58: 0.89 | G58: 0.89 | H58: 0.89 | I58: 0.89 | J58: 0.9 | K58: 0.89 | L58: 0.89 | M58: 0.9
A59: STREETS | B59: 0.76 | C59: 0.77 | D59: 0.79 | E59: 0.8 | F59: 0.82 | G59: 0.84 | H59: 0.84 | I59: 0.85 | J59: 0.89 | K59: 0.89 | L59: 0.91 | M59: 0.95
A60: OPEN SPACE | B60: 0.11 | C60: 0.16 | D60: 0.2 | E60: 0.14 | F60: 0.19 | G60: 0.26 | H60: 0.18 | I60: 0.23 | J60: 0.32 | K60: 0.22 | L60: 0.27 | M60: 0.39
A61: PARKING | B61: 0.95 | C61: 0.96 | D61: 0.97 | E61: 0.95 | F61: 0.96 | G61: 0.97 | H61: 0.95 | I61: 0.96 | J61: 0.97 | K61: 0.95 | L61: 0.96 | M61: 0.97
A63: Bog | B63: Flat | C63: Large (>50% wetland) | D63: None | E63: None | F63: None
A64: Swamp | B64: Rolling | C64: Moderate (5-50% wetland) | D64: Minor | E64: Seasonal | F64: Present
A65: Marsh | B65: Hilly | C65: Small (<5% wetland) | D65: Extensive | E65: Permanent
A66: Fen | B66: Steep
A68: Sand
A69: Gravel
A70: Loam
A71: Clay
A72: Substrates in high water tables
A73: Shallow substrates over impervious materials such as consolidated bedrock
A75: Isolated
A76: Palustrine
A77: Riverine
A78: Lacustrine
A80: Over 50% agricultural and/or urban
A81: Between 30% and 50% agricultural and/or urban
A82: Over 50% forested or other natural vegetation
A84: Simple species buffer containing only trees, or shrubs, or trees
A85: Complex species buffer containing trees, shrubs and grasses/forbs
A87: 1
A88: 50-99%
A89: less than 50%
A91: 15m to less than 50m
A92: 10m to less than 15m
A93: 5m to less than 10m
A94: Less than 5m
A96: Less than 5%
A97: 5% to less than 10%
A98: 10% to less than 15%
A99: Greater than 15%
A101: Sand
A102: Loam
A103: Clay
A105: Wetland does not have permanent open water
A106: Wetland does have permanent open water
A108: Infrequent, situation-by-situation (daily) basis
A109: Frequent, long standing (monthly, seasonly) informal basis
A110: Year-round, formalized access (i.e. Bruce Trail Agreement, etc.)
A112: Greater than or equal to 120 metres and wetland is not distinctly recognizable
A113: Greater than or equal to 120 metres and wetland is distinctly recognizable
A114: Less than 120 metres
A115: Immediately adjacent
A117: Minimal public allowance on an infrequent, situation-by-situation (daily) basis
A118: Public allowance on a frequent (ongoing) basis
A119: Public allowance on a more frequent (ongoing) basis and landowner is willing to participate in education and research activities
